Workbook

Sheet Notes Balance
A1: TOTAL NOTE BALANCES
B2: Total Notes | C2: Class A1 Notes | D2: Class A2 Notes | E2: Class B Notes | F2: Class C Notes
A3: Initial Invested Amount | B3: =SUM(C3:F3) -> 408900000 | C3: 189325000 | D3: 200000000 | E3: 10875000 | F3: 8700000
A4: Invested Amount as at Previous Payment Date: 17 August 2020 | B4: =SUM(C4:F4) -> 408900000 | C4: 189325000 | D4: 200000000 | E4: 10875000 | F4: 8700000
A5: Stated Amount as at Previous Payment Date: 17 August 2020 | B5: 408900000 | C5: 189325000 | D5: 200000000 | E5: 10875000 | F5: 8700000
A6: Principal Payments to Noteholders on Payment Date | B6: 34777204.24 | C6: 34777204.24 | D6: 0 | E6: 0 | F6: 0
A7: Gross Aggregate Charge-Offs | B7: =SUM(C7:G7) -> 0 | C7: 0 | D7: 0 | E7: 0 | F7: 0
A8: Gross Aggregate Reinstatements of charge-offs | B8: 0 | C8: 0 | D8: 0 | E8: 0 | F8: 0
A9: Aggregate Charge-Offs for this Collection Period | B9: 0 | C9: 0 | D9: 0 | E9: 0 | F9: 0
A10: Reinstatements relating to Charge-offs that have occurred this Collection Period | B10: 0 | C10: 0 | D10: 0 | E10: 0 | F10: 0
A11: Aggregate Carry Over Charge-offs not previously reinstated | B11: 0 | C11: 0 | D11: 0 | E11: 0 | F11: 0
A12: Reinstatements of Carry Over Charge-offs not previously reinstated | B12: 0 | C12: 0 | D12: 0 | E12: 0 | F12: 0
A13: Aggregate Charge-Offs not reinstated and to be carried over to next period | B13: 0 | C13: 0 | D13: 0 | E13: 0 | F13: 0
A14: Invested Amount as at Payment Date: 16 November 2020 | B14: 374122795.8 | C14: 154547795.8 | D14: 200000000 | E14: 10875000 | F14: 8700000
A15: Stated Amount as at Payment Date: 16 November 2020 | B15: 374122795.8 | C15: 154547795.8 | D15: 200000000 | E15: 10875000 | F15: 8700000
A16: Bond Factor at Payment Date: 16 November 2020 | C16: 0.8163094983 | D16: 1 | E16: 1 | F16: 1
A17: Coupon Margin | C17: 0.0095 | D17: 0.011 | E17: 0 | F17: 0
A18: Coupon Rate (3 month BBSW + margin) | C18: 0.0105 | D18: 0.012 | E18: 0.001 | F18: 0.001
A19: Days in Coupon Period | C19: 91 | D19: 91 | E19: 91 | F19: 91
A20: Coupon Entitlement to be paid out on the current Payment Date: 16 November 2020 | C20: 495616.54 | D20: 598356.16 | E20: 2711.3 | F20: 2169.04
A24: TOTAL NOTE BALANCES
B25: Total Notes | C25: Class A1 Notes | D25: Class A2 Notes | E25: Class B Notes | F25: Class C Notes
A26: Initial Invested Amount | B26: =SUM(C26:G26) -> 408900000 | C26: 189325000 | D26: 200000000 | E26: 10875000 | F26: 8700000
A27: Invested Amount as at Previous Payment Date: 16 November 2020 | B27: =SUM(C27:G27) -> 374122795.8 | C27: 154547795.8 | D27: 200000000 | E27: 10875000 | F27: 8700000
A28: Stated Amount as at Previous Payment Date: 16 November 2020 | B28: 374122795.8 | C28: 154547795.8 | D28: 200000000 | E28: 10875000 | F28: 8700000
A29: Principal Payments to Noteholders on Payment Date | B29: 28459951.68 | C29: 28459951.68 | D29: 0 | E29: 0 | F29: 0
A30: Gross Aggregate Charge-Offs | B30: 0 | C30: 0 | D30: 0 | E30: 0 | F30: 0
A31: Gross Aggregate Reinstatements of charge-offs | B31: 0 | C31: 0 | D31: 0 | E31: 0 | F31: 0
A32: Aggregate Charge-Offs for this Collection Period | B32: 0 | C32: 0 | D32: 0 | E32: 0 | F32: 0
A33: Reinstatements relating to Charge-offs that have occurred this Collection Period | B33: =SUM(C33:G33) -> 0 | C33: 0 | D33: 0 | E33: 0 | F33: 0
A34: Aggregate Carry Over Charge-offs not previously reinstated | B34: 0 | C34: 0 | D34: 0 | E34: 0 | F34: 0
A35: Reinstatements of Carry Over Charge-offs not previously reinstated | B35: 0 | C35: 0 | D35: 0 | E35: 0 | F35: 0
A36: Aggregate Charge-Offs not reinstated and to be carried over to next period | B36: 0 | C36: 0 | D36: 0 | E36: 0 | F36: 0
A37: Invested Amount as at Payment Date: 16 February 2021 | B37: 345662844.1 | C37: 126087844.1 | D37: 200000000 | E37: 10875000 | F37: 8700000
A38: Stated Amount as at Payment Date: 16 February 2021 | B38: 345662844.1 | C38: 126087844.1 | D38: 200000000 | E38: 10875000 | F38: 8700000
A39: Bond Factor at Payment Date: 16 February 2021 | C39: 0.6659862357 | D39: 1 | E39: 1 | F39: 1
A40: Coupon Margin | C40: 0.0095 | D40: 0.011 | E40: 0 | F40: 0
A41: Coupon Rate (3 month BBSW + margin) | C41: 0.0097 | D41: 0.0112 | E41: 0.0002 | F41: 0.0002
A42: Days in Coupon Period | C42: 92 | D42: 92 | E42: 92 | F42: 92
A43: Coupon Entitlement to be paid out on the current Payment Date: 16 February 2021 | C43: 377858.78 | D43: 564602.74 | E43: 548.22 | F43: 438.58
A47: TOTAL NOTE BALANCES
B48: Total Notes | C48: Class A1 Notes | D48: Class A2 Notes | E48: Class B Notes | F48: Class C Notes
A49: Initial Invested Amount | B49: =SUM(C49:F49) -> 408900000 | C49: 189325000 | D49: 200000000 | E49: 10875000 | F49: 8700000
A50: Invested Amount as at Previous Payment Date: 16 February 2021 | B50: =SUM(C50:F50) -> 345662844.1 | C50: 126087844.1 | D50: 200000000 | E50: 10875000 | F50: 8700000
A51: Stated Amount as at Previous Payment Date: 16 February 2021 | B51: 345662844.1 | C51: 126087844.1 | D51: 200000000 | E51: 10875000 | F51: 8700000
A52: Principal Payments to Noteholders on Payment Date | B52: 62919663.53 | C52: 62919663.53 | D52: 0 | E52: 0 | F52: 0
A53: Gross Aggregate Charge-Offs | B53: 0 | C53: =+D53 -> 0 | D53: 0 | E53: 0 | F53: 0
A54: Gross Aggregate Reinstatements of charge-offs | B54: 0 | C54: 0 | D54: 0 | E54: 0 | F54: 0
A55: Aggregate Charge-Offs for this Collection Period | B55: 0 | C55: 0 | D55: 0 | E55: 0 | F55: 0
A56: Reinstatements relating to Charge-offs that have occurred this Collection Period | B56: 0 | C56: 0 | D56: 0 | E56: 0 | F56: 0
A57: Aggregate Carry Over Charge-offs not previously reinstated | B57: 0 | C57: 0 | D57: 0 | E57: 0 | F57: 0
A58: Reinstatements of Carry Over Charge-offs not previously reinstated | B58: 0 | C58: 0 | D58: 0 | E58: 0 | F58: 0
A59: Aggregate Charge-Offs not reinstated and to be carried over to next period | B59: =SUM(C59:F59) -> 0 | C59: 0 | D59: 0 | E59: 0 | F59: 0
A60: Invested Amount as at Payment Date: 17 May 2021 | B60: =SUM(C60:F60) -> 282743180.5 | C60: 63168180.55 | D60: 200000000 | E60: 10875000 | F60: 8700000
A61: Stated Amount as at Payment Date: 17 May 2021 | B61: =SUM(C61:F61) -> 282743180.5 | C61: 63168180.55 | D61: 200000000 | E61: 10875000 | F61: 8700000
A62: Bond Factor at Payment Date: 17 May 2021 | C62: 0.3336494417 | D62: 1 | E62: 1 | F62: 1
A63: Coupon Margin | C63: 0.0095 | D63: 0.011 | E63: 0 | F63: 0
A64: Coupon Rate (3 month BBSW + margin) | C64: 0.009603 | D64: 0.011103 | E64: 0.000103 | F64: 0.000103
A65: Days in Coupon Period | C65: 90 | D65: 90 | E65: 90 | F65: 90
A66: Coupon Entitlement to be paid out on the current Payment Date: 17 May 2021 | C66: 298558.74 | D66: 547545.21 | E66: 276.2 | F66: 220.96
A70: TOTAL NOTE BALANCES
B71: Total Notes | C71: Class A1 Notes | D71: Class A2 Notes | E71: Class B Notes | F71: Class C Notes
A72: Initial Invested Amount | B72: =SUM(C72:G72) -> 408900000 | C72: 189325000 | D72: 200000000 | E72: 10875000 | F72: 8700000
A73: Invested Amount as at Previous Payment Date: 17 May 2021 | B73: =SUM(C73:G73) -> 282743180.5 | C73: 63168180.55 | D73: 200000000 | E73: 10875000 | F73: 8700000
A74: Stated Amount as at Previous Payment Date: 17 May 2021 | B74: 282743180.5 | C74: 63168180.55 | D74: 200000000 | E74: 10875000 | F74: 8700000
A75: Principal Payments to Noteholders on Payment Date | B75: 22830302.51 | C75: 22830302.51 | D75: 0 | E75: 0 | F75: 0
A76: Gross Aggregate Charge-Offs | B76: =SUM(C76:G76) -> 0 | C76: 0 | D76: 0 | E76: 0 | F76: 0
A77: Gross Aggregate Reinstatements of charge-offs | B77: 0 | C77: 0 | D77: 0 | E77: 0 | F77: 0
A78: Aggregate Charge-Offs for this Collection Period | B78: 0 | C78: 0 | D78: 0 | E78: 0 | F78: 0
A79: Reinstatements relating to Charge-offs that have occurred this Collection Period | B79: =SUM(C79:G79) -> 0 | C79: 0 | D79: 0 | E79: 0 | F79: 0
A80: Aggregate Carry Over Charge-offs not previously reinstated | B80: 0 | C80: 0 | D80: 0 | E80: 0 | F80: 0
A81: Reinstatements of Carry Over Charge-offs not previously reinstated | B81: 0 | C81: 0 | D81: 0 | E81: 0 | F81: 0
A82: Aggregate Charge-Offs not reinstated and to be carried over to next period | B82: 0 | C82: 0 | D82: 0 | E82: 0 | F82: 0
A83: Invested Amount as at Payment Date: 16 August 2021 | B83: 259912878 | C83: 40337878.04 | D83: 200000000 | E83: 10875000 | F83: 8700000
A84: Stated Amount as at Payment Date: 16 August 2021 | B84: 259912878 | C84: 40337878.04 | D84: 200000000 | E84: 10875000 | F84: 8700000
A85: Bond Factor at Payment Date: 16 August 2021 | C85: 0.2130615505 | D85: 1 | E85: 1 | F85: 1
A86: Coupon Margin | C86: 0.0095 | D86: 0.011 | E86: 0 | F86: 0
A87: Coupon Rate (3 month BBSW + margin) | C87: 0.009894 | D87: 0.011394 | E87: 0.000394 | F87: 0.000394
A88: Days in Coupon Period | C88: 91 | D88: 91 | E88: 91 | F88: 91
A89: Coupon Entitlement to be paid out on the current Payment Date: 16 August 2021 | C89: 155818.42 | D89: 568139.18 | E89: 1068.25 | F89: 854.6
A93: TOTAL NOTE BALANCES
B94: Total Notes | C94: Class A1 Notes | D94: Class A2 Notes | E94: Class B Notes | F94: Class C Notes
A95: Initial Invested Amount | B95: =SUM(C95:F95) -> 408900000 | C95: 189325000 | D95: 200000000 | E95: 10875000 | F95: 8700000
A96: Invested Amount as at Previous Payment Date: 16 August 2021 | B96: =SUM(C96:F96) -> 259912878 | C96: 40337878.04 | D96: 200000000 | E96: 10875000 | F96: 8700000
A97: Stated Amount as at Previous Payment Date: 16 August 2021 | B97: 259912878 | C97: 40337878.04 | D97: 200000000 | E97: 10875000 | F97: 8700000
A98: Principal Payments to Noteholders on Payment Date | B98: 19555832.84 | C98: 19555832.84 | D98: 0 | E98: 0 | F98: 0
A99: Gross Aggregate Charge-Offs | B99: 0 | C99: 0 | D99: 0 | E99: 0 | F99: 0
A100: Gross Aggregate Reinstatements of charge-offs | B100: 0 | C100: 0 | D100: 0 | E100: 0 | F100: 0
A101: Aggregate Charge-Offs for this Collection Period | B101: 0 | C101: 0 | D101: 0 | E101: 0 | F101: 0
A102: Reinstatements relating to Charge-offs that have occurred this Collection Period | B102: 0 | C102: 0 | D102: 0 | E102: 0 | F102: 0
A103: Aggregate Carry Over Charge-offs not previously reinstated | B103: 0 | C103: 0 | D103: 0 | E103: 0 | F103: 0
A104: Reinstatements of Carry Over Charge-offs not previously reinstated | B104: 0 | C104: 0 | D104: 0 | E104: 0 | F104: 0
A105: Aggregate Charge-Offs not reinstated and to be carried over to next period | B105: 0 | C105: 0 | D105: 0 | E105: 0 | F105: 0
A106: Invested Amount as at Payment Date: 16 November 2021 | B106: 240357045.2 | C106: 20782045.2 | D106: 200000000 | E106: 10875000 | F106: 8700000
A107: Stated Amount as at Payment Date: 16 November 2021 | B107: 240357045.2 | C107: 20782045.2 | D107: 200000000 | E107: 10875000 | F107: 8700000
A108: Bond Factor at Payment Date: 16 November 2021 | C108: 0.1097691546 | D108: 1 | E108: 1 | F108: 1
A109: Coupon Margin | C109: 0.0095 | D109: 0.011 | E109: 0 | F109: 0
A110: Coupon Rate (3 month BBSW + margin) | C110: 0.009657 | D110: 0.011157 | E110: 0.000157 | F110: 0.000157
A111: Days in Coupon Period | C111: 92 | D111: 92 | E111: 92 | F111: 92
A112: Coupon Entitlement to be paid out on the current Payment Date: 16 November 2021 | C112: 98186.15 | D112: 562435.07 | E112: 430.35 | F112: 344.28
A116: TOTAL NOTE BALANCES
B117: Total Notes | C117: Class A1 Notes | D117: Class A2 Notes | E117: Class B Notes | F117: Class C Notes
A118: Initial Invested Amount | B118: =SUM(C118:G118) -> 408900000 | C118: 189325000 | D118: 200000000 | E118: 10875000 | F118: 8700000
A119: Invested Amount as at Previous Payment Date: 16 November 2021 | B119: =SUM(C119:G119) -> 240357045.2 | C119: 20782045.2 | D119: 200000000 | E119: 10875000 | F119: 8700000
A120: Stated Amount as at Previous Payment Date: 16 November 2021 | B120: 240357045.2 | C120: 20782045.2 | D120: 200000000 | E120: 10875000 | F120: 8700000
A121: Principal Payments to Noteholders on Payment Date | B121: 24527195.32 | C121: 20782045.2 | D121: 3745150.12 | E121: 0 | F121: 0
A122: Gross Aggregate Charge-Offs | B122: =SUM(C122:G122) -> 0 | C122: 0 | D122: 0 | E122: 0 | F122: 0
A123: Gross Aggregate Reinstatements of charge-offs | B123: 0 | C123: 0 | D123: 0 | E123: 0 | F123: 0
A124: Aggregate Charge-Offs for this Collection Period | B124: 0 | C124: 0 | D124: 0 | E124: 0 | F124: 0
A125: Reinstatements relating to Charge-offs that have occurred this Collection Period | B125: =SUM(C125:G125) -> 0 | C125: 0 | D125: 0 | E125: 0 | F125: 0
A126: Aggregate Carry Over Charge-offs not previously reinstated | B126: 0 | C126: 0 | D126: 0 | E126: 0 | F126: 0
A127: Reinstatements of Carry Over Charge-offs not previously reinstated | B127: 0 | C127: 0 | D127: 0 | E127: 0 | F127: 0
A128: Aggregate Charge-Offs not reinstated and to be carried over to next period | B128: 0 | C128: 0 | D128: 0 | E128: 0 | F128: 0
A129: Invested Amount as at Payment Date: 16 February 2022 | B129: 215829849.9 | C129: 0 | D129: 196254849.9 | E129: 10875000 | F129: 8700000
A130: Stated Amount as at Payment Date: 16 February 2022 | B130: 215829849.9 | C130: -2.235174179e-08 | D130: 196254849.9 | E130: 10875000 | F130: 8700000
A131: Bond Factor at Payment Date: 16 February 2022 | C131: -1.180601706e-16 | D131: 0.9812742494 | E131: 1 | F131: 1
A132: Coupon Margin | C132: 0.0095 | D132: 0.011 | E132: 0 | F132: 0
A133: Coupon Rate (3 month BBSW + margin) | C133: 0.009949 | D133: 0.011449 | E133: 0.000449 | F133: 0.000449
A134: Days in Coupon Period | C134: 92 | D134: 92 | E134: 92 | F134: 92
A135: Coupon Entitlement to be paid out on the current Payment Date: 16 February 2022 | C135: 52114.99 | D135: 577155.07 | E135: 1230.75 | F135: 984.6
A139: TOTAL NOTE BALANCES
B140: Total Notes | C140: Class A1 Notes | D140: Class A2 Notes | E140: Class B Notes | F140: Class C Notes
A141: Initial Invested Amount | B141: =SUM(C141:G141) -> 408900000 | C141: 189325000 | D141: 200000000 | E141: 10875000 | F141: 8700000
A142: Invested Amount as at Previous Payment Date: 16 February 2022 | B142: 215829849.9 | C142: 0 | D142: 196254849.9 | E142: 10875000 | F142: 8700000
A143: Stated Amount as at Previous Payment Date: 16 February 2022 | B143: 215829849.9 | C143: -2.235174179e-08 | D143: 196254849.9 | E143: 10875000 | F143: 8700000
A144: Principal Payments to Noteholders on Payment Date | B144: 53637223.85 | C144: 0 | D144: 53637223.85 | E144: 0 | F144: 0
A145: Gross Aggregate Charge-Offs | B145: 0 | C145: 0 | D145: 0 | E145: 0 | F145: 0
A146: Gross Aggregate Reinstatements of charge-offs | B146: 0 | C146: 0 | D146: 0 | E146: 0 | F146: 0
A147: Aggregate Charge-Offs for this Collection Period | B147: -2.235174179e-08 | C147: -2.235174179e-08 | D147: 0 | E147: 0 | F147: 0
A148: Reinstatements relating to Charge-offs that have occurred this Collection Period | B148: =SUM(C148:G148) -> 0 | C148: 0 | D148: 0 | E148: 0 | F148: 0
A149: Aggregate Carry Over Charge-offs not previously reinstated | B149: 0 | C149: 0 | D149: 0 | E149: 0 | F149: 0
A150: Reinstatements of Carry Over Charge-offs not previously reinstated | B150: 0 | C150: 0 | D150: 0 | E150: 0 | F150: 0
A151: Aggregate Charge-Offs not reinstated and to be carried over to next period | B151: -2.235174179e-08 | C151: -2.235174179e-08 | D151: 0 | E151: 0 | F151: 0
A152: Invested Amount as at Payment Date: 16 May 2022 | B152: 162192626 | C152: 0 | D152: 142617626 | E152: 10875000 | F152: 8700000
A153: Stated Amount as at Payment Date: 16 May 2022 | B153: 162192626 | C153: 0 | D153: 142617626 | E153: 10875000 | F153: 8700000
A154: Bond Factor at Payment Date: 16 May 2022 | C154: 0 | D154: 0.7130881302 | E154: 1 | F154: 1
A155: Coupon Margin | C155: 0.0095 | D155: 0.011 | E155: 0 | F155: 0
A156: Coupon Rate (3 month BBSW + margin) | C156: 0.010284 | D156: 0.011784 | E156: 0.000784 | F156: 0.000784
A157: Days in Coupon Period | C157: 89 | D157: 89 | E157: 89 | F157: 89
A158: Coupon Entitlement to be paid out on the current Payment Date: 16 May 2022 | C158: 0 | D158: 563910.62 | E158: 2078.94 | F158: 1663.15
A162: TOTAL NOTE BALANCES
B163: Total Notes | C163: Class A1 Notes | D163: Class A2 Notes | E163: Class B Notes | F163: Class C Notes
A164: Initial Invested Amount | B164: =SUM(C164:F164) -> 408900000 | C164: 189325000 | D164: 200000000 | E164: 10875000 | F164: 8700000
A165: Invested Amount as at Previous Payment Date: 16 May 2022 | B165: =SUM(C165:F165) -> 162192626 | C165: 0 | D165: 142617626 | E165: 10875000 | F165: 8700000
A166: Stated Amount as at Previous Payment Date: 16 May 2022 | B166: =SUM(C166:F166) -> 162192626 | C166: 0 | D166: 142617626 | E166: 10875000 | F166: 8700000
A167: Principal Payments to Noteholders on Payment Date | B167: 21689862.07 | C167: 0 | D167: 21689862.07 | E167: 0 | F167: 0
A168: Gross Aggregate Charge-Offs | B168: 0 | C168: 0 | D168: 0 | E168: 0 | F168: 0
A169: Gross Aggregate Reinstatements of charge-offs | B169: 0 | C169: 0 | D169: 0 | E169: 0 | F169: 0
A170: Aggregate Charge-Offs for this Collection Period | B170: 0 | C170: 0 | D170: 0 | E170: 0 | F170: 0
A171: Reinstatements relating to Charge-offs that have occurred this Collection Period | B171: 0 | C171: 0 | D171: 0 | E171: 0 | F171: 0
A172: Aggregate Carry Over Charge-offs not previously reinstated | B172: 0 | C172: 0 | D172: 0 | E172: 0 | F172: 0
A173: Reinstatements of Carry Over Charge-offs not previously reinstated | B173: 0 | C173: 0 | D173: 0 | E173: 0 | F173: 0
A174: Aggregate Charge-Offs not reinstated and to be carried over to next period | B174: 0 | C174: 0 | D174: 0 | E174: 0 | F174: 0
A175: Invested Amount as at Payment Date: 16 August 2022 | B175: 140502764 | C175: 0 | D175: 120927764 | E175: 10875000 | F175: 8700000
A176: Stated Amount as at Payment Date: 16 August 2022 | B176: 140502764 | C176: 0 | D176: 120927764 | E176: 10875000 | F176: 8700000
A177: Bond Factor at Payment Date: 16 August 2022 | C177: 0 | D177: 0.6046388198 | E177: 1 | F177: 1
A178: Coupon Margin | C178: 0.0095 | D178: 0.011 | E178: 0 | F178: 0
A179: Coupon Rate (3 month BBSW + margin) | C179: 0.0195 | D179: 0.021 | E179: 0.01 | F179: 0.01
A180: Days in Coupon Period | C180: 92 | D180: 92 | E180: 92 | F180: 92
A181: Coupon Entitlement to be paid out on the current Payment Date: 16 August 2022 | C181: 0 | D181: 754896.58 | E181: 27410.96 | F181: 21928.77
A184: TOTAL NOTE BALANCES
B185: Total Notes | C185: Class A1 Notes | D185: Class A2 Notes | E185: Class B Notes | F185: Class C Notes
A186: Initial Invested Amount | B186: =SUM(C186:G186) -> 408900000 | C186: 189325000 | D186: 200000000 | E186: 10875000 | F186: 8700000
A187: Invested Amount as at Previous Payment Date: 16 August 2022 | B187: 140502764 | C187: 0 | D187: 120927764 | E187: 10875000 | F187: 8700000
A188: Stated Amount as at Previous Payment Date: 16 August 2022 | B188: 140502764 | C188: 0 | D188: 120927764 | E188: 10875000 | F188: 8700000
A189: Principal Payments to Noteholders on Payment Date | B189: 15838363.35 | C189: 0 | D189: 15838363.35 | E189: 0 | F189: 0
A190: Gross Aggregate Charge-Offs | B190: 0 | C190: 0 | D190: 0 | E190: 0 | F190: 0
A191: Gross Aggregate Reinstatements of charge-offs | B191: 0 | C191: 0 | D191: 0 | E191: 0 | F191: 0
A192: Aggregate Charge-Offs for this Collection Period | B192: 0 | C192: 0 | D192: 0 | E192: 0 | F192: 0
A193: Reinstatements relating to Charge-offs that have occurred this Collection Period | B193: =SUM(C193:G193) -> 0 | C193: 0 | D193: 0 | E193: 0 | F193: 0
A194: Aggregate Carry Over Charge-offs not previously reinstated | B194: 0 | C194: 0 | D194: 0 | E194: 0 | F194: 0
A195: Reinstatements of Carry Over Charge-offs not previously reinstated | B195: 0 | C195: 0 | D195: 0 | E195: 0 | F195: 0
A196: Aggregate Charge-Offs not reinstated and to be carried over to next period | B196: 0 | C196: 0 | D196: 0 | E196: 0 | F196: 0
A197: Invested Amount as at Payment Date: 16 November 2022 | B197: 124664400.6 | C197: 0 | D197: 105089400.6 | E197: 10875000 | F197: 8700000
A198: Stated Amount as at Payment Date: 16 November 2022 | B198: 124664400.6 | C198: 0 | D198: 105089400.6 | E198: 10875000 | F198: 8700000
A199: Bond Factor at Payment Date: 16 November 2022 | C199: 0 | D199: 0.5254470031 | E199: 1 | F199: 1
A200: Coupon Margin | C200: 0.0095 | D200: 0.011 | E200: 0 | F200: 0
A201: Coupon Rate (3 month BBSW + margin) | C201: 0.032535 | D201: 0.034035 | E201: 0.023035 | F201: 0.023035
A202: Days in Coupon Period | C202: 92 | D202: 92 | E202: 92 | F202: 92
A203: Coupon Entitlement to be paid out on the current Payment Date: 16 November 2022 | C203: 0 | D203: 1037401.19 | E203: 63141.14 | F203: 50512.92

Sheet Cumulative Defaults
A1: Cumulative Defaults & Losses
A3: Month | B3: Gross Losses | C3: Recoveries | D3: Net Losses
A4: 2020-10-01 | B4: 0 | C4: 0 | D4: =+B4-C4 -> 0
A5: 2021-01-01 | B5: 0 | C5: 0 | D5: 0
A6: 2021-04-01 | B6: 0.0004145025517 | C6: 0 | D6: 0.0004145025517
A7: 2021-07-01 | B7: 0.002166107655 | C7: 0.0004436071034 | D7: 0.001722500552
A8: 2021-10-01 | B8: 0.002166107655 | C8: 0.0006057963908 | D8: 0.001560311264
A9: 2022-01-01 | B9: 0.002166107655 | C9: 0.001782667379 | D9: 0.0003834402759
A10: 2022-04-01 | B10: 0.002166107655 | C10: 0.001782667379 | D10: 0.0003834402759
A11: 2022-07-01 | B11: 0.002351672069 | C11: 0.001782667379 | D11: 0.0005690046897
A12: 2022-10-01 | B12: =+B11+'Collateral Tables'!E9/'Collateral Tables'!AK6 -> 0.002351672069 | C12: =+C11+'Collateral Tables'!E23/'Collateral Tables'!AK6 -> 0.001940661119 | D12: 0.0004110109495

Sheet Collateral Tables
B1: CNHI CAPITAL AUSTRALIA RECEIVABLES TRUST SERIES 2020-1 (TERM DEAL)
B2: COLLATERAL DATA TABLES
B4: OUTSTANDING RECEIVABLES | E4: 2022-10-31 | I4: 2022-07-31 | M4: 2022-04-30 | Q4: 2022-01-31 | U4: 2021-10-31 | Y4: 2021-07-31 | AC4: 2021-04-30 | AG4: 2021-01-31 | AK4: 2020-10-31
B6: Opening Balance | E6: =I13 -> 166602764 | I6: 188292626 | M6: 241929849.9 | Q6: 266150764.5 | U6: 285706597.3 | Y6: 308843180.6 | AC6: 371762844.1 | AG6: 400222795.8 | AK6: 434999973.2
B7: Principal Repayments - Scheduled | E7: =MIN(([2]Sheet1!$B$3+[3]Sheet1!$B$3+[4]Sheet1!$B$3),'[1]16 Nov 22'!$H$23) -> 10802142.24 | I7: 15186705.53 | M7: 50368331.03 | Q7: 20483625.58 | U7: 13474555.29 | Y7: 18901918.63 | AC7: 59828601.88 | AG7: 25136419.83 | AK7: 26305441.5
B8: Principal Repayments - Unscheduled | E8: ='[1]16 Nov 22'!$H$23-'Collateral Tables'!E7 -> 5036221.11 | I8: 6422436.02 | M8: 3268892.82 | Q8: 3737288.99 | U8: 6081277.55 | Y8: 3472716.41 | AC8: 2910753.04 | AG8: 3323531.85 | AK8: 8471735.94
A9: =SUM(E9:AK9) -> 1022977.35 | B9: Charge-Offs | E9: ='[1]16 Nov 22'!$H$37 -> 0 | I9: 80720.52 | M9: 0 | Q9: 0 | U9: 0 | Y9: 761948.22 | AC9: 180308.61 | AG9: 0 | AK9: 0
B10: Reinstatements
B11: New Receivables Purchased
B12: Non Cash Change in Receivables
B13: Closing Balance | E13: =E6-E7-E8-E9+E10+E11-E12 -> 150764400.6 | I13: 166602764 | M13: 188292626 | Q13: 241929849.9 | U13: 266150764.5 | Y13: 285706597.3 | AC13: 308843180.6 | AG13: 371762844.1 | AK13: 400222795.8
B15: PORTFOLIO STATISTICS
B17: Summary
B18: Number of contracts | E18: =[5]Summary!$B$4 -> 2239 | I18: 2430 | M18: 2592 | Q18: 2793 | U18: 2936 | Y18: 3089 | AC18: 3260 | AG18: 3379 | AK18: 3459
B19: Dollar value of contracts | E19: =[5]Summary!$B$5 -> 150764400.6 | I19: 166602764 | M19: 188292626 | Q19: 241929849.9 | U19: 266150764.5 | Y19: 285706597.3 | AC19: 308843180.5 | AG19: 371762844.1 | AK19: 400222795.8
B20: Number of contracts closed during the Quarter | E20: =[5]Summary!$B$19 -> 191 | I20: 161 | M20: 201 | Q20: 143 | U20: 153 | Y20: 169 | AC20: 118 | AG20: 80 | AK20: 81
B21: Dollar value of contracts closed during the Quarter | E21: =[5]Summary!$B$20 -> 6635912.99 | I21: 9288138.55 | M21: 10682698.57 | Q21: 6966650.93 | U21: 6913033.95 | Y21: 6346762.2 | AC21: 8489230.94 | AG21: 6207942.72 | AK21: 11089284.78
A23: =SUM(E23:AK23) -> 844187.5827 | B23: Dollar Value of Recoveries from Collateral | E23: =[5]Summary!$C$16 -> 68727.27273 | I23: 0 | M23: 0 | Q23: 511938.88 | U23: 70552.34 | Y23: 192969.09 | AC23: 0 | AG23: 0 | AK23: 0
A24: =SUM(E24:AK24) -> 0 | B24: Dollar Value of Recoveries from Other Sources | E24: 0 | I24: 0 | M24: 0 | Q24: 0 | U24: 0 | Y24: 0 | AC24: 0 | AG24: 0 | AK24: 0
B26: Average Term of Contracts (Months) | E26: =[6]Sheet1!$W$2241 -> 57.53914717 | I26: 57.19177872 | M26: 57.00350771 | Q26: 56.28094782 | U26: 55.94476123 | Y26: 55.73999239 | AC26: 55.45583889 | AG26: 54.83671258 | AK26: 54.45878773
B27: Average Term to Maturity (Months) | E27: =[6]Sheet1!$X$2241 -> 20.96647261 | I27: 23.39658323 | M27: 25.87803266 | Q27: 27.42799524 | U27: 29.9250219 | Y27: 32.57407875 | AC27: 34.94562877 | AG27: 36.78524888 | AK27: 39.32011075
B28: Average Residual / Balloon Payment * | E28: =[6]Sheet1!$AI$2241 -> 0.0399514024 | I28: 0.04007721013 | M28: 0.04299607813 | Q28: 0.03803217399 | U28: 0.03728312916 | Y28: 0.03718121089 | AC28: 0.03880945952 | AG28: 0.03738139172 | AK28: 0.0375541485
B29: Average Seasoning (Months) | E29: =E26-E27 -> 36.57267456 | I29: 33.79519549 | M29: 31.12547504 | Q29: 28.85295259 | U29: 26.01973933 | Y29: 23.16591364 | AC29: 20.51021012 | AG29: 18.0514637 | AK29: 15.13867698
B30: Average Dollar Value of Individual Assets | E30: =E19/E18 -> 67335.59652 | I30: 68560.80821 | M30: 72643.76004 | Q30: 86620.06798 | U30: 90650.80533 | Y30: 92491.61453 | AC30: 94737.17195 | AG30: 110021.5579 | AK30: 115704.7689
B31: Weighted Average Interest Rate | E31: =[6]Sheet1!$AA$2241/100 -> 0.02249017578 | I31: 0.02249908708 | M31: 0.02256194558 | Q31: 0.02264053072 | U31: 0.02267227953 | Y31: 0.02270699089 | AC31: 0.02273150474 | AG31: 0.02272660821 | AK31: 0.02279313753
B33: Payment in Arrears
A34: 1. 0 - 30 Days | B34: 0 - 30 Days | E34: =IFERROR(VLOOKUP($A34,'[7]Arrears Reporting'!$A$1:$D$8,3,FALSE),0) -> 2235 | F34: =IFERROR(VLOOKUP($A34,'[7]Arrears Reporting'!$A$1:$D$8,2,FALSE),0) -> 7595.87 | G34: =F34/F$50 -> 5.03823845e-05 | I34: 2430 | J34: 12445.27 | K34: 7.470026129e-05 | M34: 2586 | N34: 27763.28 | O34: 0.0001474475161 | Q34: 2789 | R34: 221564.45 | S34: 0.0009158210535 | U34: 2931 | V34: 46557.44 | W34: 0.0001749288231 | Y34: 3088 | Z34: 1243.82 | AA34: 4.35348715e-06 | AC34: 3244 | AD34: 96795.25 | AE34: 0.000313412295 | AG34: 3368 | AH34: 669139.27 | AI34: 0.001799908949 | AK34: 3448 | AL34: 608582.11 | AM34: 0.001520608312
A35: 2. 31 - 60 Days | B35: 31 - 60 Days | E35: =IFERROR(VLOOKUP($A35,'[7]Arrears Reporting'!$A$1:$D$8,3,FALSE),0) -> 3 | F35: =IFERROR(VLOOKUP($A35,'[7]Arrears Reporting'!$A$1:$D$8,2,FALSE),0) -> 63443.54 | G35: 0.0004208124713 | I35: 0 | J35: 0 | K35: 0 | M35: 5 | N35: 235579.35 | O35: 0.001251134232 | Q35: 3 | R35: 49823.04 | S35: 0.0002059400278 | U35: 1 | V35: 6263.16 | W35: 2.353237652e-05 | Y35: 1 | Z35: 31314.59 | AA35: 0.0001096040144 | AC35: 10 | AD35: 74360.21 | AE35: 0.0002407701212 | AG35: 3 | AH35: 77257.8 | AI35: 0.0002078147433 | AK35: 8 | AL35: 239593.93 | AM35: 0.0005986513825
A36: 3. 61 - 90 Days | B36: 61 - 90 Days | E36: =IFERROR(VLOOKUP($A36,'[7]Arrears Reporting'!$A$1:$D$8,3,FALSE),0) -> 1 | F36: =IFERROR(VLOOKUP($A36,'[7]Arrears Reporting'!$A$1:$D$8,2,FALSE),0) -> 2106.4 | G36: 1.397146801e-05 | I36: 0 | J36: 0 | K36: 0 | M36: 1 | N36: 79563 | O36: 0.0004225497391 | Q36: 1 | R36: 3126.36 | S36: 1.292258893e-05 | U36: 3 | V36: 117643.13 | W36: 0.0004420168781 | Y36: 0 | Z36: 0 | AA36: 0 | AC36: 2 | AD36: 37814.99 | AE36: 0.0001224407479 | AG36: 4 | AH36: 131816.78 | AI36: 0.0003545722282 | AK36: 2 | AL36: 134580.25 | AM36: 0.0003362633299
A37: 4. 91 - 120 Days | B37: 91 - 120 Days | E37: =IFERROR(VLOOKUP($A37,'[7]Arrears Reporting'!$A$1:$D$8,3,FALSE),0) -> 0 | F37: =IFERROR(VLOOKUP($A37,'[7]Arrears Reporting'!$A$1:$D$8,2,FALSE),0) -> 0 | G37: 0 | I37: 0 | J37: 0 | K37: 0 | M37: 0 | N37: 0 | O37: 0 | Q37: 0 | R37: 0 | S37: 0 | U37: 0 | V37: 0 | W37: 0 | Y37: 0 | Z37: 0 | AA37: 0 | AC37: 2 | AD37: 115620.05 | AE37: 0.0003743649116 | AG37: 2 | AH37: 41551.66 | AI37: 0.0001117692654 | AK37: 1 | AL37: 5840.85 | AM37: 1.45939963e-05
A38: 5. 121 - 150 Days | B38: 121 - 150 Days | E38: =IFERROR(VLOOKUP($A38,'[7]Arrears Reporting'!$A$1:$D$8,3,FALSE),0) -> 0 | F38: =IFERROR(VLOOKUP($A38,'[7]Arrears Reporting'!$A$1:$D$8,2,FALSE),0) -> 0 | G38: 0 | I38: 0 | J38: 0 | K38: 0 | M38: 0 | N38: 0 | O38: 0 | Q38: 0 | R38: 0 | S38: 0 | U38: 0 | V38: 0 | W38: 0 | Y38: 0 | Z38: 0 | AA38: 0 | AC38: 0 | AD38: 0 | AE38: 0 | AG38: 2 | AH38: 3518.85 | AI38: 9.465308478e-06 | AK38: 0 | AL38: 0 | AM38: 0
A39: 6. 151 - 180 Days | B39: 151 - 180 Days | E39: =IFERROR(VLOOKUP($A39,'[7]Arrears Reporting'!$A$1:$D$8,3,FALSE),0) -> 0 | F39: =IFERROR(VLOOKUP($A39,'[7]Arrears Reporting'!$A$1:$D$8,2,FALSE),0) -> 0 | G39: 0 | I39: 0 | J39: 0 | K39: 0 | M39: 0 | N39: 0 | O39: 0 | Q39: 0 | R39: 0 | S39: 0 | U39: 1 | V39: 8527 | W39: 3.203823223e-05 | Y39: 0 | Z39: 0 | AA39: 0 | AC39: 2 | AD39: 122531.52 | AE39: 0.0003967434857 | AG39: 0 | AH39: 0 | AI39: 0 | AK39: 0 | AL39: 0 | AM39: 0
B40: Total | E40: =SUM(E34:E39) -> 2239 | F40: =SUM(F34:F39) -> 73145.81 | G40: =SUM(G34:G39) -> 0.0004851663238 | I40: 2430 | J40: 12445.27 | K40: 7.470026129e-05 | M40: 2592 | N40: 342905.63 | O40: 0.001821131487 | Q40: 2793 | R40: 274513.85 | S40: 0.00113468367 | U40: 2936 | V40: 178990.73 | W40: 0.00067251631 | Y40: 3089 | Z40: 32558.41 | AA40: 0.0001139575015 | AC40: 3260 | AD40: 447122.02 | AE40: 0.001447731561 | AG40: 3379 | AH40: 923284.36 | AI40: 0.002483530495 | AK40: 3459 | AL40: 988597.14 | AM40: 0.002470117021
B41: * Expressed as a % of Aggreg. Rec. closing bal. | F41: > 30 days | G41: =SUM(G35:G39) -> 0.0004347839393 | J41: > 30 days | K41: 0 | N41: > 30 days | O41: 0.001673683971 | R41: > 30 days | S41: 0.0002188626167 | V41: > 30 days | W41: 0.0004975874868 | Z41: > 30 days | AA41: 0.0001096040144 | AD41: > 30 days | AE41: 0.001134319266 | AH41: > 30 days | AI41: 0.0006836215454 | AL41: > 30 days | AM41: 0.0009495087087
A43: 0 - 30 Days | B43: Account Balances in Arrears
A44: 1. 0 - 30 Days | B44: 0 - 30 Days | E44: =IFERROR(VLOOKUP($A44,'[7]Arrears Reporting'!$A$1:$D$8,3,FALSE),0) -> 2235 | F44: =IFERROR(VLOOKUP($A44,'[7]Arrears Reporting'!$A$1:$D$8,4,FALSE),0) -> 150527300.3 | G44: =F44/F$50 -> 0.9984273457 | I44: 2430 | J44: 166602764 | K44: 1 | M44: 2586 | N44: 187285532.3 | O44: 0.9946514434 | Q44: 2789 | R44: 241635939.4 | S44: 0.9987851419 | U44: 2931 | V44: 265617550.5 | W44: 0.9979965718 | Y44: 3088 | Z44: 285598376.7 | AA44: 0.9996212176 | AC44: 3244 | AD44: 306751454.7 | AE44: 0.9932272235 | AG44: 3368 | AH44: 370345507 | AI44: 0.9961875236 | AK44: 3448 | AL44: 398525593.3 | AM44: 0.9957593559
A45: 2. 31 - 60 Days | B45: 31 - 60 Days | E45: =IFERROR(VLOOKUP($A45,'[7]Arrears Reporting'!$A$1:$D$8,3,FALSE),0) -> 3 | F45: =IFERROR(VLOOKUP($A45,'[7]Arrears Reporting'!$A$1:$D$8,4,FALSE),0) -> 181481.41 | G45: =F45/F$50 -> 0.001203741794 | I45: 0 | J45: 0 | K45: 0 | M45: 5 | N45: 927530.77 | O45: 0.004926006873 | Q45: 3 | R45: 244087.32 | S45: 0.001008917751 | U45: 1 | V45: 186406.89 | W45: 0.0007003808176 | Y45: 1 | Z45: 108220.64 | AA45: 0.0003787824328 | AC45: 10 | AD45: 955937.27 | AE45: 0.003095218966 | AG45: 3 | AH45: 457915.85 | AI45: 0.001231741841 | AK45: 8 | AL45: 1107284.19 | AM45: 0.002766669469
A46: 3. 61 - 90 Days | B46: 61 - 90 Days | E46: =IFERROR(VLOOKUP($A46,'[7]Arrears Reporting'!$A$1:$D$8,3,FALSE),0) -> 1 | F46: =IFERROR(VLOOKUP($A46,'[7]Arrears Reporting'!$A$1:$D$8,4,FALSE),0) -> 55618.87 | G46: 0.0003689124871 | I46: 0 | J46: 0 | K46: 0 | M46: 1 | N46: 79563 | O46: 0.0004225497391 | Q46: 1 | R46: 49823.12 | S46: 0.0002059403584 | U46: 3 | V46: 338296.19 | W46: 0.001271069766 | Y46: 0 | Z46: 0 | AA46: 0 | AC46: 2 | AD46: 219395.31 | AE46: 0.0007103777056 | AG46: 4 | AH46: 653099.6 | AI46: 0.001756764051 | AK46: 2 | AL46: 543586.31 | AM46: 0.001358209267
A47: 4. 91 - 120 Days | B47: 91 - 120 Days | E47: =IFERROR(VLOOKUP($A47,'[7]Arrears Reporting'!$A$1:$D$8,3,FALSE),0) -> 0 | F47: =IFERROR(VLOOKUP($A47,'[7]Arrears Reporting'!$A$1:$D$8,4,FALSE),0) -> 0 | G47: =F47/F$50 -> 0 | I47: 0 | J47: 0 | K47: 0 | M47: 0 | N47: 0 | O47: 0 | Q47: 0 | R47: 0 | S47: 0 | U47: 0 | V47: 0 | W47: 0 | Y47: 0 | Z47: 0 | AA47: 0 | AC47: 2 | AD47: 348198.83 | AE47: 0.001127429232 | AG47: 2 | AH47: 222711.16 | AI47: 0.0005990678293 | AK47: 1 | AL47: 46331.93 | AM47: 0.0001157653449
A48: 5. 121 - 150 Days | B48: 121 - 150 Days | E48: =IFERROR(VLOOKUP($A48,'[7]Arrears Reporting'!$A$1:$D$8,3,FALSE),0) -> 0 | F48: =IFERROR(VLOOKUP($A48,'[7]Arrears Reporting'!$A$1:$D$8,4,FALSE),0) -> 0 | G48: =F48/F$50 -> 0 | I48: 0 | J48: 0 | K48: 0 | M48: 0 | N48: 0 | O48: 0 | Q48: 0 | R48: 0 | S48: 0 | U48: 0 | V48: 0 | W48: 0 | Y48: 0 | Z48: 0 | AA48: 0 | AC48: 0 | AD48: 0 | AE48: 0 | AG48: 2 | AH48: 83610.45 | AI48: 0.0002249026532 | AK48: 0 | AL48: 0 | AM48: 0
A49: 6. 151 - 180 Days | B49: 151 - 180 Days | E49: =IFERROR(VLOOKUP($A49,'[7]Arrears Reporting'!$A$1:$D$8,3,FALSE),0) -> 0 | F49: =IFERROR(VLOOKUP($A49,'[7]Arrears Reporting'!$A$1:$D$8,4,FALSE),0) -> 0 | G49: =F49/F$50 -> 0 | I49: 0 | J49: 0 | K49: 0 | M49: 0 | N49: 0 | O49: 0 | Q49: 0 | R49: 0 | S49: 0 | U49: 1 | V49: 8510.88 | W49: 3.197766506e-05 | Y49: 0 | Z49: 0 | AA49: 0 | AC49: 2 | AD49: 568194.44 | AE49: 0.001839750643 | AG49: 0 | AH49: 0 | AI49: 0 | AK49: 0 | AL49: 0 | AM49: 0
B50: Total | E50: =SUM(E44:E49) -> 2239 | F50: =SUM(F44:F49) -> 150764400.6 | G50: =SUM(G44:G49) -> 1 | I50: 2430 | J50: 166602764 | K50: 1 | M50: 2592 | N50: 188292626 | O50: 1 | Q50: 2793 | R50: 241929849.9 | S50: 1 | U50: 2936 | V50: 266150764.4 | W50: 1 | Y50: 3089 | Z50: 285706597.3 | AA50: 1 | AC50: 3260 | AD50: 308843180.5 | AE50: 1 | AG50: 3379 | AH50: 371762844.1 | AI50: 1 | AK50: 3459 | AL50: 400222795.8 | AM50: 1
A51: NSW | F51: > 30 days | G51: =SUM(G45:G49) -> 0.001572654281 | J51: > 30 days | K51: 0 | N51: > 30 days | O51: 0.005348556612 | R51: > 30 days | S51: 0.001214858109 | V51: > 30 days | W51: 0.002003428249 | Z51: > 30 days | AA51: 0.0003787824328 | AD51: > 30 days | AE51: 0.006772776547 | AH51: > 30 days | AI51: 0.003812476375 | AL51: > 30 days | AM51: 0.004240644081
F52: > 60 days | G52: =SUM(G46:G49) -> 0.0003689124871 | J52: > 60 days | K52: 0 | N52: > 60 days | O52: 0.0004225497391 | R52: > 60 days | S52: 0.0002059403584 | V52: > 60 days | W52: 0.001303047431 | Z52: > 60 days | AA52: 0 | AD52: > 60 days | AE52: 0.003677557581 | AH52: > 60 days | AI52: 0.002580734534 | AL52: > 60 days | AM52: 0.001473974612
F53: >90 days | G53: =SUM(G47:G49) -> 0 | J53: >90 days | K53: 0 | N53: >90 days | O53: 0 | R53: >90 days | S53: 0 | V53: >90 days | W53: 3.197766506e-05 | Z53: >90 days | AA53: 0 | AD53: >90 days | AE53: 0.002967179875 | AH53: >90 days | AI53: 0.0008239704825 | AL53: >90 days | AM53: 0.0001157653449
A55: VIC | B55: Geographic Distribution
A56: NSW | B56: New South Wales | E56: =F56/F$64 -> 0.2362637298 | F56: =IFERROR(VLOOKUP($A56,'[7]Geographic '!$A$1:$C$10,3,FALSE),0) -> 35620159.61 | I56: 0.2431369943 | J56: 40507295.27 | M56: 0.2470348571 | N56: 46514841.97 | Q56: 0.2419630765 | R56: 58538090.77 | U56: 0.2447914932 | V56: 65151443.04 | Y56: 0.2462737399 | Z56: 70362032.22 | AC56: 0.2499836063 | AD56: 77205732.06 | AG56: 0.2453388574 | AH56: 91207871.4 | AK56: 0.2468596892 | AL56: 98798874.96
A57: VIC | B57: Victoria | E57: =F57/F$64 -> 0.2232029986 | F57: =IFERROR(VLOOKUP($A57,'[7]Geographic '!$A$1:$C$10,3,FALSE),0) -> 33651066.3 | I57: 0.225406497 | J57: 37553345.41 | M57: 0.2322001169 | N57: 43721569.78 | Q57: 0.2214006677 | R57: 53563430.31 | U57: 0.2160418566 | V57: 57499705.3 | Y57: 0.2171302888 | Z57: 62035555.97 | AC57: 0.2223633599 | AD57: 68675407.31 | AG57: 0.2167722969 | AH57: 80587885.6 | AK57: 0.2132303205 | AL57: 85339635.01
A58: QLD | B58: Queensland | E58: 0.09462572432 | F58: =IFERROR(VLOOKUP($A58,'[7]Geographic '!$A$1:$C$10,3,FALSE),0) -> 14266190.61 | I58: 0.1012282456 | J58: 16864905.5 | M58: 0.11324649 | N58: 21323479 | Q58: 0.1011290556 | R58: 24466137.23 | U58: 0.1044223202 | V58: 27792080.34 | Y58: 0.1123001044 | Z58: 32084880.69 | AC58: 0.1163992287 | AD58: 35949108 | AG58: 0.105665049 | AH58: 39282339.14 | AK58: 0.1091100648 | AL58: 43668335.19
A59: SA | B59: South Australia | E59: 0.2237013072 | F59: =IFERROR(VLOOKUP($A59,'[7]Geographic '!$A$1:$C$10,3,FALSE),0) -> 33726193.5 | I59: 0.2147889952 | J59: 35784440.27 | M59: 0.2075978295 | N59: 39089140.48 | Q59: 0.2168085992 | R59: 52452471.85 | U59: 0.2096151746 | V59: 55789238.97 | Y59: 0.2056930499 | Z59: 58767861.36 | AC59: 0.1997091935 | AD59: 61678822.51 | AG59: 0.2064773449 | AH59: 76760604.97 | AK59: 0.2000584062 | AL59: 80067934.64
A60: NT | B60: Northern Territory | E60: 0 | F60: =IFERROR(VLOOKUP($A60,'[7]Geographic '!$A$1:$C$10,3,FALSE),0) -> 0 | I60: 0 | J60: 0 | M60: 0 | N60: 0 | Q60: 0 | R60: 0 | U60: 0 | V60: 0 | Y60: 0 | Z60: 0 | AC60: 0 | AD60: 0 | AG60: 0 | AH60: 0 | AK60: 0 | AL60: 0
A61: ACT | B61: Australian Capital Territory | E61: 0.001669422019 | F61: =IFERROR(VLOOKUP($A61,'[7]Geographic '!$A$1:$C$10,3,FALSE),0) -> 251689.41 | I61: 0.00155032446 | J61: 258288.34 | M61: 0.001406647066 | N61: 264861.27 | Q61: 0.001447460535 | R61: 350183.91 | U61: 0.001340237218 | V61: 356705.16 | Y61: 0.001271236658 | Z61: 363200.7 | AC61: 0.001232919307 | AD61: 380778.72 | AG61: 0.001209769769 | AH61: 449747.45 | AK61: 0.001139781704 | AL61: 456166.62
A62: TAS | B62: Tasmania | E62: 0.01500003808 | F62: =IFERROR(VLOOKUP($A62,'[7]Geographic '!$A$1:$C$10,3,FALSE),0) -> 2261471.75 | I62: 0.01599532587 | J62: 2664865.5 | M62: 0.01717981845 | N62: 3234833.13 | Q62: 0.01564367982 | R62: 3784673.11 | U62: 0.01590876934 | V62: 4234131.12 | Y62: 0.01641080344 | Z62: 4688674.81 | AC62: 0.01722191936 | AD62: 5318872.35 | AG62: 0.01571368759 | AH62: 5841765.19 | AK62: 0.01579303582 | AL62: 6320732.95
A63: WA | B63: Western Australia | E63: 0.2055367799 | F63: =IFERROR(VLOOKUP($A63,'[7]Geographic '!$A$1:$C$10,3,FALSE),0) -> 30987629.43 | I63: 0.1978936176 | J63: 32969623.67 | M63: 0.1813342409 | N63: 34143900.4 | Q63: 0.2016074607 | R63: 48774862.7 | U63: 0.2078801488 | V63: 55327460.52 | Y63: 0.2009207771 | Z63: 57404391.54 | AC63: 0.1930897729 | AD63: 59634459.6 | AG63: 0.2088229945 | AH63: 77632630.33 | AK63: 0.2138087018 | AL63: 85571116.39
B64: Total | E64: =SUM(E56:E63) -> 1 | F64: =SUM(F56:F63) -> 150764400.6 | I64: 1 | J64: 166602764 | M64: 1 | N64: 188292626 | Q64: 1 | R64: 241929849.9 | U64: 1 | V64: 266150764.5 | Y64: 1 | Z64: 285706597.3 | AC64: 1 | AD64: 308843180.5 | AG64: 1 | AH64: 371762844.1 | AK64: 1 | AL64: 400222795.8
A65: AG | G65: =E13-F64 -> 1.460313797e-06 | K65: 1.519918442e-06 | O65: 1.519918442e-06 | S65: 1.549720764e-06 | W65: 1.341104507e-06 | AA65: 1.430511475e-06 | AE65: 1.549720764e-06 | AI65: 1.490116119e-06 | AM65: 1.430511475e-06
A66: CE | B66: Top Industry Distribution
A67: AGRICULTURAL MACHINERY | B67: Agricultural | E67: =F67/F$70 -> 0.9711648479 | F67: =IFERROR(VLOOKUP($A$67,'[7]Top Industry'!$A$1:$C$4,3,FALSE),) -> 146417086.2 | I67: 0.9677721557 | J67: 161233516 | M67: 0.9657555603 | N67: 181844650.6 | Q67: 0.9683976463 | R67: 234284297.2 | U67: 0.9668643001 | V67: 257331672.6 | Y67: 0.9642865543 | Z67: 275503030.2 | AC67: 0.9614475039 | AD67: 296936505 | AG67: 0.963064997 | AH67: 358031782.3 | AK67: 0.9615111519 | AL67: 384818681.4
A68: CONSTRUCTION EQUIPMENT | B68: Construction | E68: =F68/F$70 -> 0.02883515208 | F68: =IFERROR(VLOOKUP($A$68,'[7]Top Industry'!$A$1:$C$4,3,FALSE),) -> 4347314.42 | I68: 0.03222784432 | J68: 5369247.94 | M68: 0.03424443971 | N68: 6447975.48 | Q68: 0.03160235367 | R68: 7645552.68 | U68: 0.0331356999 | V68: 8819091.86 | Y68: 0.03571344571 | Z68: 10203567.05 | AC68: 0.03855249606 | AD68: 11906675.5 | AG68: 0.036935003 | AH68: 13731061.76 | AK68: 0.03848884812 | AL68: 15404114.4
A69: MOTOR VEHICLE - AG | B69: Motor Vehicle AG | E69: =F69/F$70 -> 0 | F69: =IFERROR(VLOOKUP($A$69,'[7]Top Industry'!$A$1:$C$4,3,FALSE),) -> 0 | I69: 0 | J69: 0 | M69: 0 | N69: 0 | Q69: 0 | R69: 0 | U69: 0 | V69: 0 | Y69: 0 | Z69: 0 | AC69: 0 | AD69: 0 | AG69: 0 | AH69: 0 | AK69: 0 | AL69: 0
B70: Total | E70: =SUM(E67:E69) -> 1 | F70: =SUM(F67:F69) -> 150764400.6 | G70: =F64-F70 -> 0 | I70: 1 | J70: 166602764 | K70: 0 | M70: 1 | N70: 188292626 | O70: -3.576278687e-07 | Q70: 1 | R70: 241929849.9 | S70: -2.682209015e-07 | U70: 1 | V70: 266150764.5 | W70: 0 | Y70: 1 | Z70: 285706597.3 | AA70: -5.36441803e-07 | AC70: 1 | AD70: 308843180.5 | AE70: 0 | AG70: 1 | AH70: 371762844.1 | AI70: -7.152557373e-07 | AK70: 1 | AL70: 400222795.8 | AM70: -5.960464478e-07
A71: COMBINE
A72: 40-100 HP TRACTOR | B72: Collateral Types
A73: 100<140 HP TRACTOR | B73: 100<140 HP TRACTOR | E73: =IFERROR(F73/F$111,0) -> 0.09869297148 | F73: =IFERROR(VLOOKUP($A73,[7]Collateral!$A$1:$C$35,3,FALSE),"") -> 14879386.69 | I73: 0.1035651039 | J73: 17254232.56 | M73: 0.108533457 | N73: 20436049.63 | Q73: 0.09906096251 | R73: 23965803.79 | U73: 0.0997011133 | V73: 26535527.52 | Y73: 0.1027149631 | Z73: 29346342.6 | AC73: 0.1061666541 | AD73: 32788847.12 | AG73: 0.09971483579 | AH73: 37070270.95 | AK73: 0.1004168551 | AL73: 40189114.48
A74: 4 EWD TRACTORS | B74: 4 EWD TRACTORS | E74: 0.1206205181 | F74: =IFERROR(VLOOKUP($A74,[7]Collateral!$A$1:$C$35,3,FALSE),"") -> 18185280.11 | I74: 0.1120918166 | J74: 18674806.46 | M74: 0.1070147183 | N74: 20150082.33 | Q74: 0.1058417122 | R74: 25606269.55 | U74: 0.1069007941 | V74: 28451728.06 | Y74: 0.101741429 | Z74: 29068197.47 | AC74: 0.09956622657 | AD74: 30750350.09 | AG74: 0.09974166383 | AH74: 37080244.62 | AK74: 0.09774929935 | AL74: 39121497.87
A75: 40<60 HP TRACTOR | B75: 40<60 HP TRACTOR | E75: 0.008934647798 | F75: =IFERROR(VLOOKUP($A75,[7]Collateral!$A$1:$C$35,3,FALSE),"") -> 1347026.82 | I75: 0.00954857796 | J75: 1590819.48 | M75: 0.009787063035 | N75: 1842831.8 | Q75: 0.008964647649 | R75: 2168815.86 | U75: 0.009259790837 | V75: 2464500.41 | Y75: 0.009639588991 | Z75: 2754094.17 | AC75: 0.01000269245 | AD75: 3089263.35 | AG75: 0.009629846681 | AH75: 3580019.19 | AK75: 0.009783323542 | AL75: 3915509.1
A76: 4WD Vehicle | B76: 4WD Vehicle | E76: 0.004307341172 | F76: =IFERROR(VLOOKUP($A76,[7]Collateral!$A$1:$C$35,3,FALSE),"") -> 649393.71 | I76: 0.004113460087 | J76: 685313.82 | M76: 0.003639621128 | N76: 685313.82 | Q76: 0.003747600722 | R76: 906656.48 | U76: 0.003406552229 | V76: 906656.48 | Y76: 0.003296312192 | Z76: 941778.14 | AC76: 0.003049373272 | AD76: 941778.14 | AG76: 0.00312783356 | AH76: 1162812.3 | AK76: 0.002905412466 | AL76: 1162812.3
A77: 60<100 HP TRACTOR | B77: 60<100 HP TRACTOR | E77: 0.04533800567 | F77: =IFERROR(VLOOKUP($A77,[7]Collateral!$A$1:$C$35,3,FALSE),"") -> 6835357.25 | I77: 0.04808253813 | J77: 8010683.75 | M77: 0.04909869513 | N77: 9244922.24 | Q77: 0.04454723551 | R77: 10777306 | U77: 0.04584615357 | V77: 12201988.82 | Y77: 0.04762335819 | Z77: 13606307.62 | AC77: 0.04900720645 | AD77: 15135541.51 | AG77: 0.04503198831 | AH77: 16741220.05 | AK77: 0.04600663487 | AL77: 18412904.03
A78: BACKHOE | B78: BACKHOE | E78: 0 | F78: =IFERROR(VLOOKUP($A78,[7]Collateral!$A$1:$C$35,3,FALSE),"") ->  | I78: 0 | M78: 1.217402959e-05 | N78: 2292.28 | Q78: 3.786312439e-05 | R78: 9160.22 | U78: 6.829730524e-05 | V78: 18177.38 | Y78: 0.0001102734074 | Z78: 31505.84 | AC78: 0.0003426491717 | AD78: 105824.86 | AG78: 0.0003252984313 | AH78: 120933.87 | AK78: 0.0003622858606 | AL78: 144995.06
A79: BALERS, WINDROWERS, MOWERS, RAKES | B79: BALERS, WINDROWERS, MOWERS, RAKES | E79: 0.03256526415 | F79: =IFERROR(VLOOKUP($A79,[7]Collateral!$A$1:$C$35,3,FALSE),"") -> 4909682.53 | I79: 0.03659433988 | J79: 6096718.17 | M79: 0.03753251723 | N79: 7067096.23 | Q79: 0.03803631819 | R79: 9202120.75 | U79: 0.03848104852 | V79: 10241760.48 | Y79: 0.04065597694 | Z79: 11615680.83 | AC79: 0.04099178589 | AD79: 12660033.53 | AG79: 0.04085804306 | AH79: 15189502.29 | AK79: 0.04060595749 | AL79: 16251429.83
A80: COMBINES | B80: COMBINES | E80: 0.2919697504 | F80: =IFERROR(VLOOKUP($A80,[7]Collateral!$A$1:$C$35,3,FALSE),"") -> 44018644.42 | I80: 0.2944568169 | J80: 49057319.56 | M80: 0.2844891261 | N80: 53567204.63 | Q80: 0.3124367881 | R80: 75587785.23 | U80: 0.3099368585 | V80: 82489931.81 | Y80: 0.311516673 | Z80: 89002368.63 | AC80: 0.3053911599 | AD80: 94317977.13 | AG80: 0.3245691052 | AH80: 120662733.7 | AK80: 0.3270829099 | AL80: 130906036.7
A81: COMPACT TRACK LOADER | B81: COMPACT TRACK LOADER | E81: 0.003036424966 | F81: =IFERROR(VLOOKUP($A81,[7]Collateral!$A$1:$C$35,3,FALSE),"") -> 457784.79 | I81: 0.003560480906 | J81: 593185.96 | M81: 0.004165607526 | N81: 784353.18 | Q81: 0.003911242042 | R81: 946246.2 | U81: 0.004185029047 | V81: 1113848.68 | Y81: 0.004514472197 | Z81: 1289814.49 | AC81: 0.004954302171 | AD81: 1530102.44 | AG81: 0.004838250833 | AH81: 1798681.89 | AK81: 0.005216192436 | AL81: 2087639.12
A82: COMPACT WHEEL LOADER | B82: COMPACT WHEEL LOADER | E82: 0.0004309996905 | F82: =IFERROR(VLOOKUP($A82,[7]Collateral!$A$1:$C$35,3,FALSE),"") -> 64979.41 | I82: 0.0004952362016 | J82: 82507.72 | M82: 0.0005747884146 | N82: 108228.42 | Q82: 0.0005590497827 | R82: 135250.83 | U82: 0.0006092290223 | V82: 162146.77 | Y82: 0.0006612280983 | Z82: 188917.23 | AC82: 0.0006979696609 | AD82: 215563.17 | AG82: 0.0006511828007 | AH82: 242085.57 | AK82: 0.0006708397993 | AL82: 268485.38
A83: CRAWLER EXCAVATOR | B83: CRAWLER EXCAVATOR | E83: 0.005759270003 | F83: =IFERROR(VLOOKUP($A83,[7]Collateral!$A$1:$C$35,3,FALSE),"") -> 868292.89 | I83: 0.006582780465 | J83: 1096709.42 | M83: 0.006902372533 | N83: 1299665.85 | Q83: 0.006345117978 | R83: 1535073.44 | U83: 0.006497489322 | V83: 1729311.75 | Y83: 0.006968033881 | Z83: 1990813.25 | AC83: 0.007248052899 | AD83: 2238511.71 | AG83: 0.007287579093 | AH83: 2709251.13 | AK83: 0.007480996964 | AL83: 2994065.52
A84: CRAWLER DOZER | B84: CRAWLER DOZER | E84: 0 | F84: =IFERROR(VLOOKUP($A84,[7]Collateral!$A$1:$C$35,3,FALSE),"") ->  | I84: 0 | M84: 0.0002123184048 | N84: 39977.99 | Q84: 0.0001652462068 | R84: 39977.99 | U84: 0.00015020806 | V84: 39977.99 | Y84: 0.0001399267304 | Z84: 39977.99 | AC84: 0.0002563402561 | AD84: 79168.94 | AG84: 0.0002129554937 | AH84: 79168.94 | AK84: 0.0001978121707 | AL84: 79168.94
A85: CULTIVATORS,SEEDERS, HARROWS | B85: CULTIVATORS,SEEDERS, HARROWS | E85: 0.02514363281 | F85: =IFERROR(VLOOKUP($A85,[7]Collateral!$A$1:$C$35,3,FALSE),"") -> 3790764.73 | I85: 0.02330143677 | J85: 3882083.77 | M85: 0.02274071699 | N85: 4281909.32 | Q85: 0.02200492454 | R85: 5323648.09 | U85: 0.02074616784 | V85: 5521608.43 | Y85: 0.01967203993 | Z85: 5620431.59 | AC85: 0.01944014143 | AD85: 6003955.11 | AG85: 0.01931097417 | AH85: 7179102.68 | AK85: 0.01860263278 | AL85: 7445197.7
A86: DRILL | B86: DRILL | E86: 0.001223240561 | F86: =IFERROR(VLOOKUP($A86,[7]Collateral!$A$1:$C$35,3,FALSE),"") -> 184421.13 | I86: 0.001199319839 | J86: 199810 | M86: 0.001211216205 | N86: 228063.08 | Q86: 0.001095468005 | R86: 265026.41 | U86: 0.001044273875 | V86: 277934.29 | Y86: 0.001024049647 | Z86: 292577.74 | AC86: 0.001004748492 | AD86: 310309.72 | AG86: 0.0009583941367 | AH86: 356295.33 | AK86: 0.0009203942502 | AL86: 368362.76
A87: DUMP TRUCKS | B87: DUMP TRUCKS | E87: 0.0001086442153 | F87: =IFERROR(VLOOKUP($A87,[7]Collateral!$A$1:$C$35,3,FALSE),"") -> 16379.68 | I87: 0.0001081607506 | J87: 18019.88 | M87: 0.0001043002077 | N87: 19638.96 | Q87: 8.778230553e-05 | R87: 21237.16 | U87: 8.572118907e-05 | V87: 22814.76 | Y87: 8.53044355e-05 | Z87: 24372.04 | AC87: 8.389128086e-05 | AD87: 25909.25 | AG87: 7.377455934e-05 | AH87: 27426.64 | AK87: 7.227092086e-05 | AL87: 28924.47
A88: EXCAVATORS / GRADERS | B88: EXCAVATORS / GRADERS | E88: 0 | F88: =IFERROR(VLOOKUP($A88,[7]Collateral!$A$1:$C$35,3,FALSE),"") ->  | I88: 0 | M88: 0 | Q88: 2.428596555e-06 | R88: 587.55 | U88: 8.281888668e-05 | V88: 22042.31 | Y88: 0.0002225320682 | Z88: 63578.88 | AC88: 0.0003286310218 | AD88: 101495.45 | AG88: 0.0004116089126 | AH88: 153020.9 | AK88: 0.0005266989343 | AL88: 210796.92
A89: FEEDERS, MIXERS, WAGONS, BINS, FEED STORAGE | B89: FEEDERS, MIXERS, WAGONS, BINS, FEED STORAGE | E89: 0.001372563345 | F89: =IFERROR(VLOOKUP($A89,[7]Collateral!$A$1:$C$35,3,FALSE),"") -> 206933.69 | I89: 0.00132383548 | J89: 220554.65 | M89: 0.001365981693 | N89: 257204.28 | Q89: 0.001267652917 | R89: 306683.08 | U89: 0.001390624486 | V89: 370115.77 | Y89: 0.001346877824 | Z89: 384811.88 | AC89: 0.001292949416 | AD89: 399318.61 | AG89: 0.001205142814 | AH89: 448027.32 | AK89: 0.001264330981 | AL89: 506014.08
A90: FRONT END LOADER | B90: FRONT END LOADER | E90: 0.0004869539474 | F90: =IFERROR(VLOOKUP($A90,[7]Collateral!$A$1:$C$35,3,FALSE),"") -> 73415.32 | I90: 0.0006832223385 | J90: 113826.73 | M90: 0.0007504758576 | N90: 141309.07 | Q90: 0.0006794145083 | R90: 164370.65 | U90: 0.000679507573 | V90: 180851.46 | Y90: 0.0007121409583 | Z90: 203463.37 | AC90: 0.0007111457977 | AD90: 219632.53 | AG90: 0.0006504254361 | AH90: 241804.01 | AK90: 0.0006438110541 | AL90: 257667.86
A91: FRONTS | B91: FRONTS | E91: 0.003107769859 | F91: =IFERROR(VLOOKUP($A91,[7]Collateral!$A$1:$C$35,3,FALSE),"") -> 468541.06 | I91: 0.002979720433 | J91: 496429.66 | M91: 0.003144959696 | N91: 592172.72 | Q91: 0.003470352296 | R91: 839581.81 | U91: 0.003658933169 | V91: 973827.86 | Y91: 0.003671054886 | Z91: 1048844.6 | AC91: 0.003484319512 | AD91: 1076108.32 | AG91: 0.003793474153 | AH91: 1410272.74 | AK91: 0.003778167926 | AL91: 1512108.93
A92: GRADER | B92: GRADER | E92: 0 | F92: =IFERROR(VLOOKUP($A92,[7]Collateral!$A$1:$C$35,3,FALSE),"") ->  | I92: 0 | M92: 0 | Q92: 0 | U92: 0 | Y92: 0 | AC92: 0 | AG92: 0 | AK92: 0
A93: HARVESTERS - Other | B93: HARVESTERS - Other | E93: 0.01790068126 | F93: =IFERROR(VLOOKUP($A93,[7]Collateral!$A$1:$C$35,3,FALSE),"") -> 2698785.48 | I93: 0.01721684168 | J93: 2868373.41 | M93: 0.0180037599 | N93: 3389975.23 | Q93: 0.01974637934 | R93: 4777238.59 | U93: 0.02012299236 | V93: 5355749.8 | Y93: 0.02018511905 | Z93: 5767021.68 | AC93: 0.01923797559 | AD93: 5941517.57 | AG93: 0.02007184394 | AH93: 7461965.79 | AK93: 0.01973731572 | AL93: 7899323.68
A94: IRRIGATION EQUIPMENT | B94: IRRIGATION EQUIPMENT | E94: 0 | F94: =IFERROR(VLOOKUP($A94,[7]Collateral!$A$1:$C$35,3,FALSE),"") ->  | I94: 0 | M94: 0 | Q94: 0 | U94: 0 | Y94: 0 | AC94: 0 | AG94: 0 | AK94: 0
A95: MATERIALS HANDLING EQUIPMENT | B95: MATERIALS HANDLING EQUIPMENT | E95: 0 | F95: =IFERROR(VLOOKUP($A95,[7]Collateral!$A$1:$C$35,3,FALSE),"") ->  | I95: 0 | M95: 0 | Q95: 0 | U95: 0 | Y95: 0 | AC95: 0 | AG95: 0 | AK95: 0
A96: MIDI CRAWLER EXCAVATOR | B96: MIDI CRAWLER EXCAVATOR | E96: 0.0003697857702 | F96: =IFERROR(VLOOKUP($A96,[7]Collateral!$A$1:$C$35,3,FALSE),"") -> 55750.53 | I96: 0.0005499690871 | J96: 91626.37 | M96: 0.0007415394482 | N96: 139626.41 | Q96: 0.0009428273531 | R96: 228098.08 | U96: 0.00105985076 | V96: 282080.09 | Y96: 0.001175694167 | Z96: 335903.58 | AC96: 0.001270364589 | AD96: 392343.44 | AG96: 0.001210467606 | AH96: 450006.88 | AK96: 0.001268061053 | AL96: 507506.94
A97: MINI EXCAVATOR | B97: MINI EXCAVATOR | E97: 0.003490301609 | F97: =IFERROR(VLOOKUP($A97,[7]Collateral!$A$1:$C$35,3,FALSE),"") -> 526213.23 | I97: 0.003868096151 | J97: 644435.51 | M97: 0.003991165431 | N97: 751507.02 | Q97: 0.003848461446 | R97: 931057.7 | U97: 0.004151275208 | V97: 1104865.07 | Y97: 0.004453658551 | Z97: 1272439.63 | AC97: 0.005133982843 | AD97: 1585595.59 | AG97: 0.004897305928 | AH97: 1820636.38 | AK97: 0.005112327163 | AL97: 2046069.87
A98: OTHER AG | B98: OTHER AG | E98: 0.01786596099 | F98: =IFERROR(VLOOKUP($A98,[7]Collateral!$A$1:$C$35,3,FALSE),"") -> 2693550.9 | I98: 0.01715551166 | J98: 2858155.66 | M98: 0.01686258154 | N98: 3175099.76 | Q98: 0.01588551604 | R98: 3843180.51 | U98: 0.01588375344 | V98: 4227473.12 | Y98: 0.01590393258 | Z98: 4543858.46 | AC98: 0.01592751471 | AD98: 4919104.3 | AG98: 0.01628559128 | AH98: 6054377.73 | AK98: 0.01618515102 | AL98: 6477666.39
A99: OTHER CE | B99: OTHER CE | E99: 0 | F99: =IFERROR(VLOOKUP($A99,[7]Collateral!$A$1:$C$35,3,FALSE),"") ->  | I99: 0 | M99: 0 | Q99: 0 | U99: 0 | Y99: 0 | AC99: 0 | AG99: 0 | AK99: 0
A100: OVER 140 HP TRACTOR | B100: OVER 140 HP TRACTOR | E100: 0.2268745147 | F100: =IFERROR(VLOOKUP($A100,[7]Collateral!$A$1:$C$35,3,FALSE),"") -> 34204600.22 | I100: 0.2249017224 | J100: 37469248.57 | M100: 0.2259932468 | N100: 42552861.91 | Q100: 0.2180087115 | R100: 52742814.85 | U100: 0.2192642032 | V100: 58357335.31 | Y100: 0.2162054813 | Z100: 61771332.37 | AC100: 0.2171970679 | AD100: 67079833.27 | AG100: 0.2101487352 | AH100: 78125491.48 | AK100: 0.2093803489 | AL100: 83798788.62
A101: QUAD BIKES | B101: QUAD BIKES | E101: 2.820347498e-05 | F101: =IFERROR(VLOOKUP($A101,[7]Collateral!$A$1:$C$35,3,FALSE),"") -> 4252.08 | I101: 3.079330665e-05 | J101: 5130.25 | M101: 3.185005237e-05 | N101: 5997.13 | Q101: 2.832577296e-05 | R101: 6852.85 | U101: 2.892184066e-05 | V101: 7697.57 | Y101: 2.986077354e-05 | Z101: 8531.42 | AC101: 3.028896407e-05 | AD101: 9354.54 | AG101: 2.734829519e-05 | AH101: 10167.08 | AK101: 2.740765922e-05 | AL101: 10969.17
A102: ROLLER | B102: ROLLER | E102: 0.005553315747 | F102: =IFERROR(VLOOKUP($A102,[7]Collateral!$A$1:$C$35,3,FALSE),"") -> 837242.32 | I102: 0.005610944127 | J102: 934798.8 | M102: 0.005477438558 | N102: 1031361.29 | Q102: 0.004658129704 | R102: 1126940.62 | U102: 0.004589682515 | V102: 1221547.51 | Y102: 0.004603298182 | Z102: 1315192.66 | AC102: 0.004558580499 | AD102: 1407886.5 | AG102: 0.004033860333 | AH102: 1499639.39 | AK102: 0.003973940532 | AL102: 1590461.59
A103: SCRAPERS | B103: SCRAPERS | E103: 0 | F103: =IFERROR(VLOOKUP($A103,[7]Collateral!$A$1:$C$35,3,FALSE),"") ->  | I103: 0 | M103: 0 | Q103: 0 | U103: 0 | Y103: 0 | AC103: 0 | AG103: 0 | AK103: 0
A104: SKID STEER LOADER | B104: SKID STEER LOADER | E104: 0.007598752128 | F104: =IFERROR(VLOOKUP($A104,[7]Collateral!$A$1:$C$35,3,FALSE),"") -> 1145621.31 | I104: 0.00863234052 | J104: 1438171.79 | M104: 0.009068558212 | N104: 1707542.64 | Q104: 0.008286922432 | R104: 2004853.9 | U104: 0.008679512549 | V104: 2310058.9 | Y104: 0.009463617416 | Z104: 2703817.93 | AC104: 0.01005187229 | AD104: 3104452.21 | AG104: 0.009460549988 | AH104: 3517080.97 | AK104: 0.009863190532 | AL104: 3947473.69
A105: SKIDSTEER / UNILOADER | B105: SKIDSTEER / UNILOADER | E105: 0 | F105: =IFERROR(VLOOKUP($A105,[7]Collateral!$A$1:$C$35,3,FALSE),"") ->  | I105: 0 | M105: 0 | Q105: 4.15220776e-05 | R105: 10045.43 | U105: 0.0001245931045 | V105: 33160.55 | Y105: 0.0002375650428 | Z105: 67873.9 | AC105: 0.0003630961182 | AD105: 112139.76 | AG105: 0.0004277361832 | AH105: 159016.42 | AK105: 0.0004905218345 | AL105: 196318.02
A106: SPRAYING EQUIPMENT | B106: SPRAYING EQUIPMENT | E106: 0.07293546531 | F106: =IFERROR(VLOOKUP($A106,[7]Collateral!$A$1:$C$35,3,FALSE),"") -> 10996071.71 | I106: 0.06878713893 | J106: 11460127.47 | M106: 0.07382295905 | N106: 13900318.82 | Q106: 0.07204359606 | R106: 17429496.38 | U106: 0.06905962437 | V106: 18380271.82 | Y106: 0.06692948991 | Z106: 19122196.82 | AC106: 0.0675041278 | AD106: 20848189.53 | AG106: 0.06662117642 | AH106: 24767278.02 | AK106: 0.06511955632 | AL106: 26062330.89
A107: Telehandlers | B107: Telehandlers | E107: 0.0008261647942 | F107: =IFERROR(VLOOKUP($A107,[7]Collateral!$A$1:$C$35,3,FALSE),"") -> 124556.24 | I107: 0.0007476240912 | J107: 124556.24 | M107: 0.0007892860338 | N107: 148616.74 | Q107: 0.0007121191539 | R107: 172282.88 | U107: 0.0006473131135 | V107: 172282.88 | Y107: 0.0006030063066 | Z107: 172282.88 | AC107: 0.0006371263877 | AD107: 196772.14 | AG107: 0.0005925622571 | AH107: 220292.63 | AK107: 0.0005504249941 | AL107: 220292.63
A108: UNDER 40 HP TRACTORS | B108: UNDER 40 HP TRACTORS | E108: 0.0009711981038 | F108: =IFERROR(VLOOKUP($A108,[7]Collateral!$A$1:$C$35,3,FALSE),"") -> 146422.1 | I108: 0.0009923353375 | J108: 165325.81 | M108: 0.0009433285506 | N108: 177621.81 | Q108: 0.0008199213123 | R108: 198363.44 | U108: 0.0008056738084 | V108: 214430.7 | Y108: 0.0008151998316 | Z108: 232907.97 | AC108: 0.0008049992866 | AD108: 248618.54 | AG108: 0.0007260124682 | AH108: 269904.46 | AK108: 0.0007512175298 | AL108: 300654.38
A109: WHEEL LOADERS | B109: WHEEL LOADERS | E109: 0.002487657952 | F109: =IFERROR(VLOOKUP($A109,[7]Collateral!$A$1:$C$35,3,FALSE),"") -> 375050.26 | I109: 0.002819836111 | J109: 469792.49 | M109: 0.002994176946 | N109: 563781.44 | Q109: 0.002715760624 | R109: 657023.56 | U109: 0.002816167902 | V109: 749525.24 | Y109: 0.002944603863 | Z109: 841292.75 | AC109: 0.00304746894 | AD109: 941190 | AG109: 0.002845774468 | AH109: 1057953.21 | AK109: 0.002932891635 | AL109: 1173810.09
A110: WHEEL LOADERS (OLD) | B110: WHEEL LOADERS (OLD) | E110: 0 | F110: =IFERROR(VLOOKUP($A110,[7]Collateral!$A$1:$C$35,3,FALSE),"") ->  | I110: 0 | M110: 0 | Q110: 0 | U110: 3.58250333e-05 | V110: 9534.86 | Y110: 0.0001332376654 | Z110: 38066.88 | AC110: 0.0002152943118 | AD110: 66492.18 | AG110: 0.0002586583666 | AH110: 96159.57 | AK110: 0.0003208182826 | AL110: 128398.79
B111: Total | E111: =SUM(E73:E109) -> 1 | F111: =SUM(F73:F110) -> 150764400.6 | G111: =F70-F111 -> 0 | I111: 1 | J111: 166602764 | K111: 0 | M111: 1 | N111: 188292626 | O111: 4.172325134e-07 | Q111: 1 | R111: 241929849.9 | S111: 0 | U111: 0.999964175 | V111: 266150764.5 | W111: 0 | Y111: 0.9998667623 | Z111: 285706597.3 | AA111: 0 | AC111: 0.9997847057 | AD111: 308843180.6 | AE111: 0 | AG111: 0.9997413416 | AH111: 371762844.1 | AI111: 7.748603821e-07 | AK111: 0.9996791817 | AL111: 400222795.8 | AM111: 7.152557373e-07
A112: $ 0 - $25,000
A113: $ 25,001 to $50,000 | B113: Contract Balance Distribution
A114: $0 - $25,000 | B114: $ 0 - $25,000 | E114: =IFERROR(F114/F$125,0) -> 0.0728540959 | F114: =IFERROR(VLOOKUP($A114,'[7] Balance Distribution'!$A$1:$C$17,3,FALSE),"") -> 10983804.1 | I114: 0.0687812883 | J114: 11459152.74 | M114: 0.06280819881 | N114: 11826320.69 | Q114: 0.05054078166 | R114: 12227323.72 | U114: 0.04423266243 | V114: 11772556.92 | Y114: 0.03910403615 | Z114: 11172281.11 | AC114: 0.03466676778 | AD114: 10706594.82 | AG114: 0.02605153432 | AH114: 9684992.49 | AK114: 0.02257445859 | AL114: 9034812.93
A115: $25,001 - $50,000 | B115: $ 25,001 to $50,000 | E115: =IFERROR(F115/F$125,0) -> 0.1174296403 | F115: =IFERROR(VLOOKUP($A115,'[7] Balance Distribution'!$A$1:$C$17,3,FALSE),"") -> 17704209.34 | I115: 0.1182288414 | J115: 19697251.75 | M115: 0.1124742882 | N115: 21178079.08 | Q115: 0.08537862951 | R115: 20655639.02 | U115: 0.08506632839 | V115: 22640468.33 | Y115: 0.08579394541 | Z115: 24511896.21 | AC115: 0.08657750675 | AD115: 26738872.55 | AG115: 0.07662445374 | AH115: 28486124.85 | AK115: 0.07303334253 | AL115: 29229608.53
A116: $50,001 - $75,000 | B116: $ 50,001 to $75,000 | E116: 0.110076762 | F116: =IFERROR(VLOOKUP($A116,'[7] Balance Distribution'!$A$1:$C$17,3,FALSE),"") -> 16595657.05 | I116: 0.1069687234 | J116: 17821284.98 | M116: 0.1072789189 | N116: 20199829.35 | Q116: 0.09177326721 | R116: 22202692.76 | U116: 0.08909541488 | V116: 23712812.78 | Y116: 0.08839739922 | Z116: 25255720.14 | AC116: 0.08717357285 | AD116: 26922963.5 | AG116: 0.07407748531 | AH116: 27539256.62 | AK116: 0.07495608116 | AL116: 29999132.36
A117: $75,001 - $100,000 | B117: $ 75,001 to $100,000 | E117: 0.1178344647 | F117: =IFERROR(VLOOKUP($A117,'[7] Balance Distribution'!$A$1:$C$17,3,FALSE),"") -> 17765242.44 | I117: 0.1193274637 | J117: 19880285.27 | M117: 0.1129972334 | N117: 21276545.82 | Q117: 0.08682183121 | R117: 21004792.59 | U117: 0.07812194105 | V117: 20792214.33 | Y117: 0.0815357116 | Z117: 23295290.72 | AC117: 0.07951136216 | AD117: 24556541.98 | AG117: 0.06599231682 | AH117: 24533491.39 | AK117: 0.06386413903 | AL117: 25559884.27
A118: $100,001 - $125,000 | B118: $100,001 to $125,000 | E118: 0.08340465739 | F118: =IFERROR(VLOOKUP($A118,'[7] Balance Distribution'!$A$1:$C$17,3,FALSE),"") -> 12574453.18 | I118: 0.09078123316 | J118: 15124404.36 | M118: 0.09033581951 | N118: 17009568.68 | Q118: 0.08292381287 | R118: 20061745.6 | U118: 0.08671377389 | V118: 23078937.21 | Y118: 0.084319463 | Z118: 24090626.86 | AC118: 0.08240835431 | AD118: 25451258.25 | AG118: 0.05910484272 | AH118: 21972984.43 | AK118: 0.05839619644 | AL118: 23371489
A119: $125,001 - $150,000 | B119: $125,001 to $150,000 | E119: 0.08410368229 | F119: =IFERROR(VLOOKUP($A119,'[7] Balance Distribution'!$A$1:$C$17,3,FALSE),"") -> 12679841.25 | I119: 0.07493635179 | J119: 12484603.33 | M119: 0.07693161466 | N119: 14485655.75 | Q119: 0.07786522688 | R119: 18837922.65 | U119: 0.07702377539 | V119: 20499936.7 | Y119: 0.08169897105 | Z119: 23341935.02 | AC119: 0.07717557891 | AD119: 23835151.25 | AG119: 0.06420850475 | AH119: 23870336.34 | AK119: 0.06537334976 | AL119: 26163904.81
A120: $150,001 - $200,000 | B120: $150,000 to $200,000 | E120: 0.1485141426 | F120: =IFERROR(VLOOKUP($A120,'[7] Balance Distribution'!$A$1:$C$17,3,FALSE),"") -> 22390645.69 | I120: 0.150680287 | J120: 25103752.29 | M120: 0.1481242633 | N120: 27890706.52 | Q120: 0.1370348278 | R120: 33152815.33 | U120: 0.1256378686 | V120: 33438614.77 | Y120: 0.1183260395 | Z120: 33806530.13 | AC120: 0.1220802731 | AD120: 37703659.83 | AG120: 0.1237549208 | AH120: 46007481.34 | AK120: 0.1171737937 | AL120: 46895623.29
A121: $200,001 - $300,000 | B121: $200,001 to $300,000 | E121: 0.1668084378 | F121: =IFERROR(VLOOKUP($A121,'[7] Balance Distribution'!$A$1:$C$17,3,FALSE),"") -> 25148774.14 | I121: 0.1684177972 | J121: 28058870.52 | M121: 0.1789379554 | N121: 33692697.51 | Q121: 0.2032369823 | R121: 49169092.62 | U121: 0.2055108386 | V121: 54696866.79 | Y121: 0.1994310405 | Z121: 56978763.98 | AC121: 0.1968957181 | AD121: 60809899.8 | AG121: 0.1938560946 | AH121: 72068493.07 | AK121: 0.1875042323 | AL121: 75043468.06
A122: $300,001 - $400,000 | B122: $300,001 to $400,000 | E122: 0.07127398787 | F122: =IFERROR(VLOOKUP($A122,'[7] Balance Distribution'!$A$1:$C$17,3,FALSE),"") -> 10745580.06 | I122: 0.07088100101 | J122: 11808970.68 | M122: 0.07327294829 | N122: 13796755.85 | Q122: 0.09631326156 | R122: 23301052.91 | U122: 0.1122205276 | V122: 29867579.22 | Y122: 0.1223558336 | Z122: 34957868.88 | AC122: 0.1297541494 | AD122: 40073684.2 | AG122: 0.1597930222 | AH122: 59405108.4 | AK122: 0.1584696051 | AL122: 63423148.41
A123: $400,001 - $500,000 | B123: $400,001 to $500,000 | E123: 0.02390483666 | F123: =IFERROR(VLOOKUP($A123,'[7] Balance Distribution'!$A$1:$C$17,3,FALSE),"") -> 3603998.37 | I123: 0.02756252622 | J123: 4591993.05 | M123: 0.03379989925 | N123: 6364271.79 | Q123: 0.06820908825 | R123: 16501814.48 | U123: 0.06788330523 | V123: 18067193.58 | Y123: 0.0630165873 | Z123: 18004254.73 | AC123: 0.05939240108 | AD123: 18342938.05 | AG123: 0.07240553438 | AH123: 26917687.39 | AK123: 0.08834049256 | AL123: 35355878.91
A124: $500,001+ | B124: $500,000+ | E124: 0.003795292441 | F124: =IFERROR(VLOOKUP($A124,'[7] Balance Distribution'!$A$1:$C$17,3,FALSE),"") -> 572194.99 | I124: 0.003434486778 | J124: 572194.99 | M124: 0.003038860321 | N124: 572194.99 | Q124: 0.01990229069 | R124: 4814958.2 | U124: 0.02849356392 | V124: 7583583.82 | Y124: 0.03602097259 | Z124: 10291429.51 | AC124: 0.04436431556 | AD124: 13701616.32 | AG124: 0.08413129031 | AH124: 31276887.76 | AK124: 0.09031430886 | AL124: 36145845.19
A125: $200,001 to $300,000 | B125: Total | E125: =SUM(E114:E124) -> 1 | F125: =SUM(F114:F124) -> 150764400.6 | G125: =F111-F125 -> 0 | I125: 1 | J125: 166602764 | K125: 0 | M125: 1 | N125: 188292626 | O125: 0 | Q125: 1 | R125: 241929849.9 | S125: 0 | U125: 1 | V125: 266150764.5 | W125: 0 | Y125: 1 | Z125: 285706597.3 | AA125: 0 | AC125: 1 | AD125: 308843180.6 | AE125: 0 | AG125: 1 | AH125: 371762844.1 | AI125: 0 | AK125: 1 | AL125: 400222795.8 | AM125: 0
A126: 0
A127: 0 to 5 | B127: Residual / Balloon Payment Distribution
A128: 0 | B128: 0 | E128: =IFERROR(F128/F$138,0) -> 0.8650291865 | F128: =IFERROR(VLOOKUP($A128,'[7]Residual '!$A$1:$C$14,3,FALSE),"") -> 130415606.8 | I128: 0.864019093 | J128: 143947969 | M128: 0.8558698507 | N128: 161153981.7 | Q128: 0.8714019279 | R128: 210818137.6 | U128: 0.8746776891 | V128: 232796135.6 | Y128: 0.8753944604 | Z128: 250105972.6 | AC128: 0.8721302628 | AD128: 269351484.2 | AG128: 0.8795350556 | AH128: 326978453.7 | AK128: 0.8807806998 | AL128: 352508514.1
A129: 0 to 5 | B129: 0 to 5 | E129: =IFERROR(F129/F$138,0) -> 0 | F129: =IFERROR(VLOOKUP($A129,'[7]Residual '!$A$1:$C$14,3,FALSE),"") ->  | I129: 0.0006145264194 | J129: 102381.8 | M129: 0.0005559864038 | N129: 104688.14 | Q129: 0.000442190784 | R129: 106979.15 | U129: 0.0004105001548 | V129: 109254.93 | Y129: 0.0003903150682 | Z129: 111515.59 | AC129: 0.0003683462261 | AD129: 113761.22 | AG129: 0.0003120051717 | AH129: 115991.93 | AK129: 0.0002953550404 | AL129: 118207.82
A130: 6 to 10 | B130: 06 to 10 | E130: 0.001448099744 | F130: =IFERROR(VLOOKUP($A130,'[7]Residual '!$A$1:$C$14,3,FALSE),"") -> 218321.89 | I130: 0.001402480034 | J130: 233657.05 | M130: 0.001322138287 | N130: 248948.89 | Q130: 0.001092042136 | R130: 264197.59 | U130: 0.00104979334 | V130: 279403.3 | Y130: 0.001031009304 | Z130: 294566.16 | AC130: 0.001002730089 | AD130: 309686.35 | AG130: 0.0008735784255 | AH130: 324764 | AK130: 0.0008490252769 | AL130: 339799.27
A131: 11 to 15 | B131: 11 to 15 | E131: 0.002736943989 | F131: =IFERROR(VLOOKUP($A131,'[7]Residual '!$A$1:$C$14,3,FALSE),"") -> 412633.72 | I131: 0.004814697073 | J131: 802141.84 | M131: 0.00445968909 | N131: 839726.57 | Q131: 0.005755866135 | R131: 1392515.83 | U131: 0.005536026106 | V131: 1473417.58 | Y131: 0.00544528588 | Z131: 1555754.1 | AC131: 0.00528789474 | AD131: 1633130.23 | AG131: 0.004952886173 | AH131: 1841299.05 | AK131: 0.004854227697 | AL131: 1942772.58
A132: 16 to 20 | B132: 16 to 20 | E132: 0.01452200752 | F132: =IFERROR(VLOOKUP($A132,'[7]Residual '!$A$1:$C$14,3,FALSE),"") -> 2189401.76 | I132: 0.01549634279 | J132: 2581733.54 | M132: 0.01541003156 | N132: 2901595.31 | Q132: 0.01416320343 | R132: 3426501.68 | U132: 0.01389973889 | V132: 3699426.13 | Y132: 0.01467282649 | Z132: 4192123.33 | AC132: 0.01394370244 | AD132: 4306417.41 | AG132: 0.01292833035 | AH132: 4806272.86 | AK132: 0.01286476691 | AL132: 5148772.98
A133: 21 to 25 | B133: 21 to 25 | E133: 0.01991042579 | F133: =IFERROR(VLOOKUP($A133,'[7]Residual '!$A$1:$C$14,3,FALSE),"") -> 3001783.41 | I133: 0.01835449597 | J133: 3057909.76 | M133: 0.0211281557 | N133: 3978275.92 | Q133: 0.01883239663 | R133: 4556118.89 | U133: 0.01737336768 | V133: 4623935.09 | Y133: 0.01556812752 | Z133: 4447916.74 | AC133: 0.01511540939 | AD133: 4668291.11 | AG133: 0.01401280322 | AH133: 5209439.58 | AK133: 0.01399708395 | AL133: 5601952.07
A134: 26 to 30 | B134: 26 to 30 | E134: 0.05299150003 | F134: =IFERROR(VLOOKUP($A134,'[7]Residual '!$A$1:$C$14,3,FALSE),"") -> 7989231.74 | I134: 0.04990738 | J134: 8314707.45 | M134: 0.04878899426 | N134: 9186607.85 | Q134: 0.04196340751 | R134: 10152200.88 | U134: 0.04085061947 | V134: 10872423.6 | Y134: 0.04033996425 | Z134: 11525393.92 | AC134: 0.04221178942 | AD134: 13036823.3 | AG134: 0.03974818916 | AH134: 14776899.85 | AK134: 0.03871036374 | AL134: 15492770
A135: 31 to 35 | B135: 31 to 35 | E135: 0.01429920148 | F135: =IFERROR(VLOOKUP($A135,'[7]Residual '!$A$1:$C$14,3,FALSE),"") -> 2155810.54 | I135: 0.01345291763 | J135: 2241293.26 | M135: 0.01827486128 | N135: 3441021.62 | Q135: 0.01543812453 | R135: 3734943.15 | U135: 0.01519291082 | V135: 4043604.83 | Y135: 0.01479366252 | Z135: 4226646.98 | AC135: 0.01424096748 | AD135: 4398225.69 | AG135: 0.01249323907 | AH135: 4644522.09 | AK135: 0.01210334209 | AL135: 4844033.41
A136: 36 to 40 | B136: 36 to 40 | E136: 0.02230406665 | F136: =IFERROR(VLOOKUP($A136,'[7]Residual '!$A$1:$C$14,3,FALSE),"") -> 3362659.24 | I136: 0.02400240545 | J136: 3998867.09 | M136: 0.02424537421 | N136: 4565225.18 | Q136: 0.02220726563 | R136: 5372600.44 | U136: 0.02224083242 | V136: 5919414.55 | Y136: 0.02397652387 | Z136: 6850251.05 | AC136: 0.02551032953 | AD136: 7878691.31 | AG136: 0.02301752716 | AH136: 8557061.36 | AK136: 0.02168696514 | AL136: 8679617.82
A137: 41+ % | B137: 41+% | E137: 0.006758568308 | F137: =IFERROR(VLOOKUP($A137,'[7]Residual '!$A$1:$C$14,3,FALSE),"") -> 1018951.5 | I137: 0.007935661622 | J137: 1322103.16 | M137: 0.009944918553 | N137: 1872554.83 | Q137: 0.008703575359 | R137: 2105654.68 | U137: 0.008768522025 | V137: 2333748.84 | Y137: 0.008387824687 | Z137: 2396456.85 | AC137: 0.01018856788 | AD137: 3146669.71 | AG137: 0.01212638566 | AH137: 4508139.62 | AK137: 0.01385817037 | AL137: 5546355.69
E138: =SUM(E128:E137) -> 1 | F138: =SUM(F128:F137) -> 150764400.6 | G138: =F125-F138 -> 0 | I138: 1 | J138: 166602764 | K138: 0 | M138: 1 | N138: 188292626 | O138: -5.066394806e-07 | Q138: 1 | R138: 241929849.9 | S138: 0 | U138: 1 | V138: 266150764.5 | W138: 0 | Y138: 1 | Z138: 285706597.3 | AA138: 0 | AC138: 1 | AD138: 308843180.5 | AE138: 0 | AG138: 1 | AH138: 371762844.1 | AI138: 0 | AK138: 1 | AL138: 400222795.8 | AM138: -6.556510925e-07
A139: 2004 Q1
A140: 2004 Q2 | B140: Quarter of Maturity Distribution
A141: =RIGHT(B141,2)&LEFT(B141,4) -> Q32020 | B141: 2020Q3 | E141: =F141/F$166 -> 0 | F141: =IFERROR(VLOOKUP($A141,'[7]Quarter of Maturity Dist'!$A$1:$C$27,3,FALSE),0) -> 0 | I141: 0 | J141: 0 | M141: 0 | N141: 0 | Q141: 0 | R141: 0 | U141: 0 | V141: 0 | Y141: 0 | Z141: 0 | AC141: 0 | AD141: 0 | AG141: 0 | AH141: 0 | AK141: 0.001227037203 | AL141: 491088.26
A142: Q42020 | B142: 2020Q4 | E142: 0 | F142: =IFERROR(VLOOKUP($A142,'[7]Quarter of Maturity Dist'!$A$1:$C$27,3,FALSE),0) -> 0 | I142: 0 | J142: 0 | M142: 0 | N142: 0 | Q142: 0 | R142: 0 | U142: 0 | V142: 0 | Y142: 0 | Z142: 0 | AC142: 0 | AD142: 0 | AG142: 0.0006553959705 | AH142: 243651.87 | AK142: 0.002492662438 | AL142: 997620.33
A143: Q12021 | B143: 2021Q1 | E143: 0 | F143: =IFERROR(VLOOKUP($A143,'[7]Quarter of Maturity Dist'!$A$1:$C$27,3,FALSE),0) -> 0 | I143: 0 | J143: 0 | M143: 0 | N143: 0 | Q143: 0 | R143: 0 | U143: 0 | V143: 0 | Y143: 0 | Z143: 0 | AC143: 0 | AD143: 0 | AG143: 0.007334991496 | AH143: 2726877.3 | AK143: 0.008542613055 | AL143: 3418948.48
A144: Q22021 | B144: 2021Q2 | E144: 0 | F144: =IFERROR(VLOOKUP($A144,'[7]Quarter of Maturity Dist'!$A$1:$C$27,3,FALSE),0) -> 0 | I144: 0 | J144: 0 | M144: 0 | N144: 0 | Q144: 0 | R144: 0 | U144: 0 | V144: 0 | Y144: 0 | Z144: 0 | AC144: 0.007206934069 | AD144: 2225812.44 | AG144: 0.009078400501 | AH144: 3375011.99 | AK144: 0.01049645431 | AL144: 4200920.29
A145: Q32021 | B145: 2021Q3 | E145: 0 | F145: =IFERROR(VLOOKUP($A145,'[7]Quarter of Maturity Dist'!$A$1:$C$27,3,FALSE),0) -> 0 | I145: 0 | J145: 0 | M145: 0 | N145: 0 | Q145: 0 | R145: 0 | U145: 3.197766506e-05 | V145: 8510.88 | Y145: 0.001295380308 | Z145: 370098.7 | AC145: 0.003766368576 | AD145: 1163217.25 | AG145: 0.005341585211 | AH145: 1985802.91 | AK145: 0.006317486427 | AL145: 2528402.08
A146: Q42021 | B146: 2021Q4 | E146: 0 | F146: =IFERROR(VLOOKUP($A146,'[7]Quarter of Maturity Dist'!$A$1:$C$27,3,FALSE),0) -> 0 | I146: 0 | J146: 0 | M146: 0 | N146: 0 | Q146: 0 | R146: 0 | U146: 0.005481295059 | V146: 1458850.87 | Y146: 0.007301813748 | Z146: 2086176.36 | AC146: 0.008609396961 | AD146: 2658953.54 | AG146: 0.009218635172 | AH146: 3427146.03 | AK146: 0.01089744254 | AL146: 4361404.92
A147: Q12022 | B147: 2022Q1 | E147: 0 | F147: =IFERROR(VLOOKUP($A147,'[7]Quarter of Maturity Dist'!$A$1:$C$27,3,FALSE),0) -> 0 | I147: 0 | J147: 0 | M147: 0.0004225497391 | N147: 79563 | Q147: 0.02017315715 | R147: 4880488.88 | U147: 0.02392833138 | V147: 6368543.69 | Y147: 0.02458970166 | Z147: 7025439.99 | AC147: 0.02420511328 | AD147: 7475584.17 | AG147: 0.0340665661 | AH147: 12664683.5 | AK147: 0.03569149607 | AL147: 14284550.34
A148: Q22022 | B148: 2022Q2 | E148: 0 | F148: =IFERROR(VLOOKUP($A148,'[7]Quarter of Maturity Dist'!$A$1:$C$27,3,FALSE),0) -> 0 | I148: 0 | J148: 0 | M148: 0.007979438609 | N148: 1502469.45 | Q148: 0.01228325782 | R148: 2971686.72 | U148: 0.01295856488 | V148: 3448931.95 | Y148: 0.01365065601 | Z148: 3900082.48 | AC148: 0.01707007006 | AD148: 5271974.73 | AG148: 0.01829226548 | AH148: 6800384.64 | AK148: 0.01837221859 | AL148: 7352980.69
A149: Q32022 | B149: 2022Q3 | E149: 0 | F149: =IFERROR(VLOOKUP($A149,'[7]Quarter of Maturity Dist'!$A$1:$C$27,3,FALSE),0) -> 0 | I149: 0.005795083929 | J149: 965477 | M149: 0.008507382279 | N149: 1601877.35 | Q149: 0.009897370379 | R149: 2394469.33 | U149: 0.01129448836 | V149: 3006036.71 | Y149: 0.01443238665 | Z149: 4123428.08 | AC149: 0.01565689856 | AD149: 4835526.35 | AG149: 0.0154577066 | AH149: 5746600.97 | AK149: 0.01605490766 | AL149: 6425540.03
A150: Q42022 | B150: 2022Q4 | E150: 0.006401933255 | F150: =IFERROR(VLOOKUP($A150,'[7]Quarter of Maturity Dist'!$A$1:$C$27,3,FALSE),0) -> 965183.63 | I150: 0.01304177631 | J150: 2172795.98 | M150: 0.0149603336 | N150: 2816920.5 | Q150: 0.01443678125 | R150: 3492688.32 | U150: 0.0161473277 | V150: 4297623.61 | Y150: 0.01789765745 | Z150: 5113478.81 | AC150: 0.01875869595 | AD150: 5793495.32 | AG150: 0.01739977274 | AH150: 6468589 | AK150: 0.01900083813 | AL150: 7604568.56
A151: Q12023 | B151: 2023Q1 | E151: 0.06622729484 | F151: =IFERROR(VLOOKUP($A151,'[7]Quarter of Maturity Dist'!$A$1:$C$27,3,FALSE),0) -> 9984718.41 | I151: 0.06676988872 | J151: 11124048.01 | M151: 0.06534376884 | N151: 12303749.83 | Q151: 0.0914685035 | R151: 22128961.32 | U151: 0.09322732629 | V151: 24812524.16 | Y151: 0.09189960172 | Z151: 26256322.5 | AC151: 0.08765424045 | AD151: 27071414.41 | AG151: 0.1027111576 | AH151: 38184192.08 | AK151: 0.1013513525 | AL151: 40563121.64
A152: Q22023 | B152: 2023Q2 | E152: 0.05017220623 | F152: =IFERROR(VLOOKUP($A152,'[7]Quarter of Maturity Dist'!$A$1:$C$27,3,FALSE),0) -> 7564182.6 | I152: 0.05108832199 | J152: 8511455.65 | M152: 0.06307052018 | N152: 11875713.87 | Q152: 0.06064970634 | R152: 14672974.35 | U152: 0.0590535082 | V152: 15717136.35 | Y152: 0.05878926486 | Z152: 16796480.82 | AC152: 0.06583389406 | AD152: 20332349.23 | AG152: 0.06222954372 | AH152: 23134632.16 | AK152: 0.06082467275 | AL152: 24343420.58
A153: Q32023 | B153: 2023Q3 | E153: 0.0408361587 | F153: =IFERROR(VLOOKUP($A153,'[7]Quarter of Maturity Dist'!$A$1:$C$27,3,FALSE),0) -> 6156638.99 | I153: 0.04858181448 | J153: 8093864.57 | M153: 0.05078269283 | N153: 9562006.59 | Q153: 0.04816573174 | R153: 11652728.25 | U153: 0.048645446 | V153: 12947022.64 | Y153: 0.05305677116 | Z153: 15158669.55 | AC153: 0.05630592467 | AD153: 17389700.86 | AG153: 0.05293741495 | AH153: 19680163.94 | AK153: 0.05222037723 | AL153: 20899785.37
A154: Q42023 | B154: 2023Q4 | E154: 0.0579225996 | F154: =IFERROR(VLOOKUP($A154,'[7]Quarter of Maturity Dist'!$A$1:$C$27,3,FALSE),0) -> 8732666.01 | I154: 0.06216470228 | J154: 10356811.22 | M154: 0.06271480386 | N154: 11808735.11 | Q154: 0.0564471024 | R154: 13656239.01 | U154: 0.05926211958 | V154: 15772658.43 | Y154: 0.06243135129 | Z154: 17837048.94 | AC154: 0.06062921919 | AD154: 18724920.89 | AG154: 0.0574029196 | AH154: 21340272.65 | AK154: 0.05972607291 | AL154: 23903735.88
A155: Q12024 | B155: 2024Q1 | E155: 0.1551795904 | F155: =IFERROR(VLOOKUP($A155,'[7]Quarter of Maturity Dist'!$A$1:$C$27,3,FALSE),0) -> 23395557.94 | I155: 0.1514901541 | J155: 25238678.39 | M155: 0.1410682373 | N155: 26562108.85 | Q155: 0.1493917033 | R155: 36142312.36 | U155: 0.1502212341 | V155: 39981496.3 | Y155: 0.1451349199 | Z155: 41466004.1 | AC155: 0.1397230114 | AD155: 43152499.23 | AG155: 0.1425248865 | AH155: 52985457.16 | AK155: 0.1424527051 | AL155: 57012819.88
A156: Q22024 | B156: 2024Q2 | E156: 0.05131917912 | F156: =IFERROR(VLOOKUP($A156,'[7]Quarter of Maturity Dist'!$A$1:$C$27,3,FALSE),0) -> 7737105.28 | I156: 0.0510138575 | J156: 8499049.66 | M156: 0.05362928731 | N156: 10097999.34 | Q156: 0.05212577698 | R156: 12610781.4 | U156: 0.05002440672 | V156: 13314034.09 | Y156: 0.05068505123 | Z156: 14481053.52 | AC156: 0.05137467844 | AD156: 15866719.09 | AG156: 0.04956055879 | AH156: 18424774.29 | AK156: 0.04896635646 | AL156: 19597452.08
A157: Q32024 | B157: 2024Q3 | E157: 0.07260229468 | F157: =IFERROR(VLOOKUP($A157,'[7]Quarter of Maturity Dist'!$A$1:$C$27,3,FALSE),0) -> 10945841.44 | I157: 0.07420433663 | J157: 12362647.58 | M157: 0.07460017764 | N157: 14046663.35 | Q157: 0.06703939951 | R157: 16218831.86 | U157: 0.06386048259 | V157: 16996516.26 | Y157: 0.06522991984 | Z157: 18636618.44 | AC157: 0.06616120836 | AD157: 20433438.02 | AG157: 0.06189523051 | AH157: 23010346.93 | AK157: 0.06069754129 | AL157: 24292539.67
A158: Q42024 | B158: 2024Q4 | E158: 0.1230073343 | F158: =IFERROR(VLOOKUP($A158,'[7]Quarter of Maturity Dist'!$A$1:$C$27,3,FALSE),0) -> 18545127.02 | I158: 0.1238987685 | J158: 20641877.28 | M158: 0.1179833595 | N158: 22215396.59 | Q158: 0.107506369 | R158: 26008999.72 | U158: 0.105212148 | V158: 28002293.62 | Y158: 0.10315559 | Z158: 29472232.62 | AC158: 0.09948352308 | AD158: 30724807.68 | AG158: 0.09227785731 | AH158: 34305478.68 | AK158: 0.09174362785 | AL158: 36717891.23
A159: Q12025 | B159: 2025Q1 | E159: 0.2354874881 | F159: =IFERROR(VLOOKUP($A159,'[7]Quarter of Maturity Dist'!$A$1:$C$27,3,FALSE),0) -> 35503130 | I159: 0.2177878592 | J159: 36284059.3 | M159: 0.2015757797 | N159: 37955232.91 | Q159: 0.1869906447 | R159: 45238618.6 | U159: 0.1824593791 | V159: 48561703.24 | Y159: 0.1750941252 | Z159: 50025546.71 | AC159: 0.1644295064 | AD159: 50782931.72 | AG159: 0.1575695925 | AH159: 58578519.86 | AK159: 0.1541022266 | AL159: 61675223.95
A160: Q22025 | B160: 2025Q2 | E160: 0.09554066777 | F160: =IFERROR(VLOOKUP($A160,'[7]Quarter of Maturity Dist'!$A$1:$C$27,3,FALSE),0) -> 14404131.51 | I160: 0.09142411475 | J160: 15231510.21 | M160: 0.09401413004 | N160: 17702167.43 | Q160: 0.08523270043 | R160: 20620334.42 | U160: 0.0804696867 | V160: 21417068.63 | Y160: 0.07930879764 | Z160: 22659046.71 | AC160: 0.07827471527 | AD160: 24174612.02 | AG160: 0.07259923053 | AH160: 26989696.42 | AK160: 0.06863276505 | AL160: 27468397.11
A161: Q32025 | B161: 2025Q3 | E161: 0.01293763071 | F161: =IFERROR(VLOOKUP($A161,'[7]Quarter of Maturity Dist'!$A$1:$C$27,3,FALSE),0) -> 1950534.14 | I161: 0.012758001 | J161: 2125518.23 | M161: 0.01207829684 | N161: 2274254.23 | Q161: 0.01034136206 | R161: 2501884.17 | U161: 0.01127725519 | V161: 3001450.09 | Y161: 0.0110184092 | Z161: 3148032.2 | AC161: 0.01066197668 | AD161: 3292878.79 | AG161: 0.009468720734 | AH161: 3520118.55 | AK161: 0.009054098013 | AL161: 3623656.42
A162: Q42025 | B162: 2025Q4 | E162: 0.01084241229 | F162: =IFERROR(VLOOKUP($A162,'[7]Quarter of Maturity Dist'!$A$1:$C$27,3,FALSE),0) -> 1634649.79 | I162: 0.01046511504 | J162: 1743517.09 | M162: 0.01001146051 | N162: 1885084.19 | Q162: 0.009156355948 | R162: 2215195.82 | U162: 0.008676600365 | V162: 2309283.82 | Y162: 0.008454051124 | Z162: 2415378.18 | AC162: 0.008264416962 | AD162: 2552408.82 | AG162: 0.007325964505 | AH162: 2723521.4 | AK162: 0.007012758143 | AL162: 2806665.67
A163: Q12026 | B163: 2026Q1 | E163: 0.01555259438 | F163: =IFERROR(VLOOKUP($A163,'[7]Quarter of Maturity Dist'!$A$1:$C$27,3,FALSE),0) -> 2344777.57 | I163: 0.01411319629 | J163: 2351297.51 | M163: 0.01553609975 | N163: 2925333.02 | Q163: 0.01408640712 | R163: 3407922.36 | U163: 0.01358007041 | V163: 3614346.12 | Y163: 0.01267288059 | Z163: 3620725.59 | AC163: 0.01174405215 | AD163: 3627070.42 | AG163: 0.01107271651 | AH163: 4116424.58 | AK163: 0.01079789851 | AL163: 4321565.13
A164: Q22026 | B164: 2026Q2 | E164: 0.005970615585 | F164: =IFERROR(VLOOKUP($A164,'[7]Quarter of Maturity Dist'!$A$1:$C$27,3,FALSE),0) -> 900156.28 | I164: 0.005403009282 | J164: 900156.28 | M164: 0.005721681421 | N164: 1077350.42 | Q164: 0.004607670325 | R164: 1114732.99 | U164: 0.004188351637 | V164: 1114732.99 | Y164: 0.003901670457 | Z164: 1114732.99 | AC164: 0.004186155471 | AD164: 1292865.57 | AG164: 0.003578886893 | AH164: 1330497.17 | AK164: 0.003324391274 | AL164: 1330497.17
E166: =SUM(E141:E164) -> 1 | F166: =SUM(F141:F164) -> 150764400.6 | G166: =F138-F166 -> 0 | I166: 1 | J166: 166602764 | K166: 0 | M166: 1 | N166: 188292626 | O166: 5.066394806e-07 | Q166: 1 | R166: 241929849.9 | S166: 0 | U166: 1 | V166: 266150764.4 | W166: 0 | Y166: 1 | Z166: 285706597.3 | AA166: 0 | AC166: 1 | AD166: 308843180.6 | AE166: 0 | AG166: 1 | AH166: 371762844.1 | AI166: 0 | AK166: 0.9788649521 | AL166: 400222795.8 | AM166: 5.960464478e-07
A167: 0 to 6 months
A168: 07 to 12 months | B168: Seasoning Distribution
A169: 0 to 6 months | B169: 0 to 6 months | E169: =F169/F$180 -> 0 | F169: =IFERROR(VLOOKUP($A169,'[7]Seasoning Distribution'!$A$1:$C$12,3,FALSE),0) -> 0 | I169: 0 | J169: 0 | M169: 0 | N169: 0 | Q169: 0 | R169: 0 | U169: 0 | V169: 0 | Y169: 0 | Z169: 0 | AC169: 0 | AD169: 0 | AG169: 0 | AH169: 0 | AK169: 0.052921023 | AL169: 21180199.78
A170: 07 to 12 months | B170: 07 to 12 months | E170: =F170/F$180 -> 0 | F170: =IFERROR(VLOOKUP($A170,'[7]Seasoning Distribution'!$A$1:$C$12,3,FALSE),0) -> 0 | I170: 0 | J170: 0 | M170: 0 | N170: 0 | Q170: 0 | R170: 0 | U170: 0 | V170: 0 | Y170: 0 | Z170: 0 | AC170: 0.06061218692 | AD170: 18719660.59 | AG170: 0.2548602401 | AH170: 94747567.69 | AK170: 0.4094177765 | AL170: 163858327.1
A171: 13 to 18 months | B171: 13 to 18 months | E171: 0 | F171: =IFERROR(VLOOKUP($A171,'[7]Seasoning Distribution'!$A$1:$C$12,3,FALSE),0) -> 0 | I171: 0 | J171: 0 | M171: 0 | N171: 0 | Q171: 0 | R171: 0 | U171: 0.06197180352 | V171: 16493842.88 | Y171: 0.2730906389 | Z171: 78023797.19 | AC171: 0.4229417017 | AD171: 130622660.3 | AG171: 0.4533244432 | AH171: 168529184.3 | AK171: 0.2470282524 | AL171: 98866337.8
A172: 19 to 24 months | B172: 19 to 24 months | E172: 0 | F172: =IFERROR(VLOOKUP($A172,'[7]Seasoning Distribution'!$A$1:$C$12,3,FALSE),0) -> 0 | I172: 0 | J172: 0 | M172: 0.0726138742 | N172: 13672657.06 | Q172: 0.2890348984 | R172: 69926169.57 | U172: 0.4447063926 | V172: 118358946.3 | Y172: 0.4739569471 | Z172: 135412626.6 | AC172: 0.2491087305 | AD172: 76935532.63 | AG172: 0.004313613599 | AH172: 1603641.26 | AK172: 0.02747292235 | AL172: 10995289.79
A173: 25 to 30 months | B173: 25 to 30 months | E173: 0.07307955615 | F173: =IFERROR(VLOOKUP($A173,'[7]Seasoning Distribution'!$A$1:$C$12,3,FALSE),0) -> 11017795.48 | I173: 0.3089613166 | J173: 51473809.3 | M173: 0.4696263121 | N173: 88427171.55 | Q173: 0.4720463272 | R173: 114202097.1 | U173: 0.2502979559 | V173: 66616992.31 | Y173: 0.004161786362 | Z173: 1189049.82 | AC173: 0.02705578396 | AD173: 8355994.37 | AG173: 0.1821531773 | AH173: 67717783.26 | AK173: 0.2389215961 | AL173: 95621869.17
A174: 31 to 36 months | B174: 31 to 36 months | E174: 0.4962436382 | F174: =IFERROR(VLOOKUP($A174,'[7]Seasoning Distribution'!$A$1:$C$12,3,FALSE),0) -> 74815874.67 | I174: 0.504697959 | J174: 84084074.93 | M174: 0.2552663432 | N174: 48064770.09 | Q174: 0.004184302725 | R174: 1012307.73 | U174: 0.02699889284 | V174: 7185775.97 | Y174: 0.164850475 | Z174: 47098868.28 | AC174: 0.2247471901 | AD174: 69411637.01 | AG174: 0.08387649015 | AH174: 31182162.53 | AK174: 0.0004969225694 | AL174: 198879.74
A175: 37 to 42 months | B175: 37 to 42 months | E175: 0.2585349986 | F175: =IFERROR(VLOOKUP($A175,'[7]Seasoning Distribution'!$A$1:$C$12,3,FALSE),0) -> 38977874.1 | I175: 0.003709564327 | J175: 618023.67 | M175: 0.02452597097 | N175: 4618059.48 | Q175: 0.1576820458 | R175: 38147993.68 | U175: 0.2039967851 | V175: 54293900.31 | Y175: 0.0712324421 | Z175: 20351578.65 | AC175: 0.0003088760769 | AD175: 95394.27 | AG175: 0.0001453141455 | AH175: 54022.4 | AK175: 0.002875633178 | AL175: 1150893.95
A176: 43 to 48 months | B176: 43 to 48 months | E176: 0.02390043011 | F176: =IFERROR(VLOOKUP($A176,'[7]Seasoning Distribution'!$A$1:$C$12,3,FALSE),0) -> 3603334.02 | I176: 0.1320824104 | J176: 22005294.65 | M176: 0.1751325657 | N176: 32976170.7 | Q176: 0.06893138184 | R176: 16676558.86 | U176: 0.0003054714878 | V176: 81301.47 | Y176: 0.0001397573608 | Z176: 39929.6 | AC176: 0.003234846398 | AD176: 999060.25 | AG176: 0.01364138004 | AH176: 5071358.24 | AK176: 0.0193323172 | AL176: 7737234.04
A177: 49 to 54 months | B177: 49 to 54 months | E177: 0.1480475797 | F177: =IFERROR(VLOOKUP($A177,'[7]Seasoning Distribution'!$A$1:$C$12,3,FALSE),0) -> 22320304.61 | I177: 0.05047825864 | J177: 8409817.41 | M177: 0.000230017133 | N177: 43310.53 | Q177: 0.0001067945936 | R177: 25836.8 | U177: 0.002416811281 | V177: 643236.17 | Y177: 0.009172443531 | Z177: 2620627.63 | AC177: 0.01140375295 | AD177: 3521971.33 | AG177: 0.007525070282 | AH177: 2797541.53 | AK177: 0.0015335567 | AL177: 613764.35
A178: 55 to 60 months | B178: 55 to 60 months | E178: 0.000193797275 | F178: =IFERROR(VLOOKUP($A178,'[7]Seasoning Distribution'!$A$1:$C$12,3,FALSE),0) -> 29217.73 | I178: 7.04910274e-05 | J178: 11744 | M178: 0.002182367035 | N178: 410923.62 | Q178: 0.00786704696 | R178: 1903273.49 | U178: 0.009305887192 | V178: 2476768.99 | Y178: 0.003395509621 | Z178: 970119.5 | AC178: 0.0005869313989 | AD178: 181269.76 | AG178: 0.0001602711808 | AH178: 59582.87 | AK178: 0 | AL178: 0
A179: 60+ months | B179: 61 to 72 months | E179: 0 | F179: =IFERROR(VLOOKUP($A179,'[7]Seasoning Distribution'!$A$1:$C$12,3,FALSE),0) -> 0 | I179: 0 | J179: 0 | M179: 0.0004225497391 | N179: 79563 | Q179: 0.0001472024639 | R179: 35612.67 | U179: 0 | V179: 0 | Y179: 0 | Z179: 0 | AC179: 0 | AD179: 0 | AG179: 0 | AH179: 0 | AK179: 0 | AL179: 0
A180: 61 to 72 months | B180: Total | E180: =SUM(E169:E179) -> 1 | F180: =SUM(F169:F179) -> 150764400.6 | G180: =F166-F180 -> 0 | I180: 1 | J180: 166602764 | K180: 0 | M180: 1 | N180: 188292626 | O180: 0 | Q180: 1 | R180: 241929849.9 | S180: 0 | U180: 1 | V180: 266150764.4 | W180: 0 | Y180: 1 | Z180: 285706597.3 | AA180: 0 | AC180: 1 | AD180: 308843180.5 | AE180: 0 | AG180: 1 | AH180: 371762844.1 | AI180: 0 | AK180: 1 | AL180: 400222795.8 | AM180: 0
B182: Remaining Term Distribution
A183: 0 - 12 months | B183: 0-12 Months | E183: =F183/F$189 -> 0.1892716295 | F183: =IFERROR(VLOOKUP($A183,'[7]Remaining Term'!$A$1:$C$10,3,FALSE),0) -> 28535423.78 | I183: 0.1538318509 | J183: 25628811.55 | M183: 0.121549292 | N183: 22886835.39 | Q183: 0.08145671565 | R183: 19706810.99 | U183: 0.0610264213 | V183: 16242228.68 | Y183: 0.0509124765 | Z183: 14546030.42 | AC183: 0.04930234497 | AD183: 15226693.03 | AG183: 0.04094419155 | AH183: 15221529.1 | AK183: 0.03144427 | AL183: 12584713.65
A184: 13 - 24 months | B184: 13-24 Months | E184: =F184/F$189 -> 0.3666115139 | F184: =IFERROR(VLOOKUP($A184,'[7]Remaining Term'!$A$1:$C$10,3,FALSE),0) -> 55271965.15 | I184: 0.3082727258 | J184: 51359088.17 | M184: 0.3282699467 | N184: 61810810.31 | Q184: 0.2661713619 | R184: 64394797.63 | U184: 0.2399324557 | V184: 63858206.51 | Y184: 0.1979938365 | Z184: 56568145.32 | AC184: 0.1591232535 | AD184: 49144131.7 | AG184: 0.1038506264 | AH184: 38607804.24 | AK184: 0.08739624699 | AL184: 34977970.31
A185: 25 - 36 months | B185: 25-36 Months | E185: 0.4193603285 | F185: =IFERROR(VLOOKUP($A185,'[7]Remaining Term'!$A$1:$C$10,3,FALSE),0) -> 63224608.56 | I185: 0.4975192048 | J185: 82888074.65 | M185: 0.4785074386 | N185: 90099422.18 | Q185: 0.3977407823 | R185: 96225367.76 | U185: 0.3403980815 | V185: 90597209.6 | Y185: 0.302203206 | Z185: 86341449.67 | AC185: 0.3313620636 | AD185: 102338913.6 | AG185: 0.2833847164 | AH185: 105351908.1 | AK185: 0.2547061431 | AL185: 101939204.7
A186: 37 - 48 months | B186: 37-48 Months | E186: 0.0247565281 | F186: =IFERROR(VLOOKUP($A186,'[7]Remaining Term'!$A$1:$C$10,3,FALSE),0) -> 3732403.12 | I186: 0.04037621844 | J186: 6726789.59 | M186: 0.07167332271 | N186: 13495558.15 | Q186: 0.2432916276 | R186: 58859506.95 | U186: 0.3378552481 | V186: 89920432.55 | Y186: 0.4146593854 | Z186: 118470922 | AC186: 0.4021047982 | AD186: 124187324.8 | AG186: 0.3595966868 | AH186: 133684687 | AK186: 0.3246945979 | AL186: 129950179.8
A187: 49 - 60 months | B187: 49-60 Months | E187: 0 | F187: =IFERROR(VLOOKUP($A187,'[7]Remaining Term'!$A$1:$C$10,3,FALSE),0) -> 0 | I187: 0 | J187: 0 | M187: 0 | N187: 0 | Q187: 0.01133951247 | R187: 2743366.55 | U187: 0.02078779342 | V187: 5532687.11 | Y187: 0.03423109562 | Z187: 9780049.85 | AC187: 0.05810753978 | AD187: 17946117.4 | AG187: 0.2034266237 | AH187: 75626460.19 | AK187: 0.2852533057 | AL187: 114164875.5
A188: 60+ Months | B188: 60+ Months | E188: 0 | F188: =IFERROR(VLOOKUP($A188,'[7]Remaining Term'!$A$1:$C$10,3,FALSE),0) -> 0 | I188: 0 | J188: 0 | M188: 0 | N188: 0 | Q188: 0 | R188: 0 | U188: 0 | V188: 0 | Y188: 0 | Z188: 0 | AC188: 0 | AD188: 0 | AG188: 0.008797155181 | AH188: 3270455.43 | AK188: 0.01650543627 | AL188: 6605851.85
E189: =SUM(E183:E188) -> 1 | F189: =SUM(F183:F188) -> 150764400.6 | G189: =F180-F189 -> 0 | I189: 1 | J189: 166602764 | K189: 2.980232239e-07 | M189: 1 | N189: 188292626 | O189: 0 | Q189: 1 | R189: 241929849.9 | S189: 0 | U189: 1 | V189: 266150764.4 | W189: 0 | Y189: 1 | Z189: 285706597.3 | AA189: 0 | AC189: 1 | AD189: 308843180.6 | AE189: 0 | AG189: 1 | AH189: 371762844.1 | AI189: 0 | AK189: 1 | AL189: 400222795.8 | AM189: 0
B191: Origination LVR Distribution
A192: 01. 10% to 20% | B192: 10% to 20% | E192: =F192/F$208 -> 0.0001307206471 | F192: =IFERROR(VLOOKUP($A192,'[7]LVR Band'!$A$1:$C$18,3,FALSE),0) -> 19708.02 | I192: 0.000154735308 | J192: 25779.33 | M192: 0.0001687945549 | N192: 31782.77 | Q192: 0.0003516025825 | R192: 85063.16 | U192: 0.0003553461144 | V192: 94575.64 | Y192: 0.0003434796429 | Z192: 98134.4 | AC192: 0.0003495856046 | AD192: 107967.13 | AG192: 0.0004353546961 | AH192: 161848.7 | AK192: 0.0004308100434 | AL192: 172420
A193: 02. 21% to 30% | B193: 21% to 30% | E193: 0.003923443516 | F193: =IFERROR(VLOOKUP($A193,'[7]LVR Band'!$A$1:$C$18,3,FALSE),0) -> 591515.61 | I193: 0.003731895709 | J193: 621744.14 | M193: 0.003327685917 | N193: 626578.72 | Q193: 0.003829601062 | R193: 926494.81 | U193: 0.00370294454 | V193: 985541.52 | Y193: 0.003696301066 | Z193: 1056057.6 | AC193: 0.003472147088 | AD193: 1072348.95 | AG193: 0.004531342244 | AH193: 1684584.68 | AK193: 0.004500772118 | AL193: 1801311.6
A194: 03. 31% to 40% | B194: 31% to 40% | E194: 0.01879015834 | F194: =IFERROR(VLOOKUP($A194,'[7]LVR Band'!$A$1:$C$18,3,FALSE),0) -> 2832886.96 | I194: 0.01819524249 | J194: 3031377.69 | M194: 0.01698968992 | N194: 3199033.33 | Q194: 0.02113993318 | R194: 5114380.86 | U194: 0.02141090499 | V194: 5698528.73 | Y194: 0.02139250598 | Z194: 6111980.09 | AC194: 0.02077429169 | AD194: 6415998.32 | AG194: 0.02378990886 | AH194: 8844204.18 | AK194: 0.02376140218 | AL194: 9509854.81
A195: 04. 41% to 50% | B195: 41% to 50% | E195: 0.05067849014 | F195: =IFERROR(VLOOKUP($A195,'[7]LVR Band'!$A$1:$C$18,3,FALSE),0) -> 7640512.19 | I195: 0.05044366522 | J195: 8404054.05 | M195: 0.04887132913 | N195: 9202110.9 | Q195: 0.06107820716 | R195: 14776641.49 | U195: 0.05824213702 | V195: 15501189.29 | Y195: 0.05965176706 | Z195: 17042903.39 | AC195: 0.05898706378 | AD195: 18217752.39 | AG195: 0.0653530598 | AH195: 24295839.38 | AK195: 0.0634499951 | AL195: 25394134.43
A196: 05. 51% to 60% | B196: 51% to 60% | E196: 0.1251586288 | F196: =IFERROR(VLOOKUP($A196,'[7]LVR Band'!$A$1:$C$18,3,FALSE),0) -> 18869465.65 | I196: 0.1247100322 | J196: 20777036.06 | M196: 0.1249685263 | N196: 23530651.99 | Q196: 0.1305122448 | R196: 31574807.78 | U196: 0.1335115213 | V196: 35534193.47 | Y196: 0.1325227184 | Z196: 37862614.93 | AC196: 0.1311176977 | AD196: 40494806.78 | AG196: 0.1344512128 | AH196: 49983965.27 | AK196: 0.1322238801 | AL196: 52919010.94
A197: 06. 61% to 70% | B197: 61% to 70% | E197: 0.1636228016 | F197: =IFERROR(VLOOKUP($A197,'[7]LVR Band'!$A$1:$C$18,3,FALSE),0) -> 24668493.61 | I197: 0.1642108711 | J197: 27357984.99 | M197: 0.160439756 | N197: 30209622.97 | Q197: 0.1636401835 | R197: 39589445.03 | U197: 0.1623216558 | V197: 43202032.79 | Y197: 0.1596333698 | Z197: 45608306.9 | AC197: 0.1612731412 | AD197: 49808109.88 | AG197: 0.1622175901 | AH197: 60306472.65 | AK197: 0.1610170944 | AL197: 64442711.67
A198: 07. 71% to 80% | B198: 71% to 80% | E198: 0.1996948719 | F198: =IFERROR(VLOOKUP($A198,'[7]LVR Band'!$A$1:$C$18,3,FALSE),0) -> 30106877.66 | I198: 0.1969140631 | J198: 32806427.18 | M198: 0.2014477118 | N198: 37931118.67 | Q198: 0.1996397674 | R198: 48298818.95 | U198: 0.1974877325 | V198: 52561510.98 | Y198: 0.1971022633 | Z198: 56313416.96 | AC198: 0.1970978047 | AD198: 60872312.87 | AG198: 0.1935757947 | AH198: 71964288 | AK198: 0.1902783321 | AL198: 76153726.06
A199: 08. 81% to 90% | B199: 81% to 90% | E199: 0.1848542095 | F199: =IFERROR(VLOOKUP($A199,'[7]LVR Band'!$A$1:$C$18,3,FALSE),0) -> 27869434.09 | I199: 0.1891466867 | J199: 31512360.8 | M199: 0.1922517445 | N199: 36199585.83 | Q199: 0.1793290424 | R199: 43385048.3 | U199: 0.1799646796 | V199: 47897737.04 | Y199: 0.183252878 | Z199: 52356556.23 | AC199: 0.1830082974 | AD199: 56520864.64 | AG199: 0.1749360841 | AH199: 65034736.14 | AK199: 0.1770275695 | AL199: 70850468.81
A200: 09. 91% to 100% | B200: 91% to 100% | E200: 0.2531466756 | F200: =IFERROR(VLOOKUP($A200,'[7]LVR Band'!$A$1:$C$18,3,FALSE),0) -> 38165506.82 | I200: 0.2524928082 | J200: 42065999.72 | M200: 0.2515347619 | N200: 47362140.85 | Q200: 0.240479418 | R200: 58179149.5 | U200: 0.2430030781 | V200: 64675454.99 | Y200: 0.2424047168 | Z200: 69256626.79 | AC200: 0.2439199708 | AD200: 75333019.59 | AG200: 0.2407096527 | AH200: 89486905.08 | AK200: 0.2473101445 | AL200: 98979157.44
A201: > 100% | B201: > 100% | E201: 0 | F201: =IFERROR(VLOOKUP($A201,'[7]LVR Band'!$A$1:$C$18,3,FALSE),0) -> 0 | I201: 0 | J201: 0 | M201: 0 | N201: 0 | Q201: 0 | R201: 0 | U201: 0 | V201: 0 | Y201: 0 | Z201: 0 | AC201: 0 | AD201: 0 | AG201: 0 | AH201: 0 | AK201: 0 | AL201: 0
E202: =SUM(E192:E201) -> 1 | F202: =SUM(F192:F201) -> 150764400.6 | G202: =F189-F202 -> 0 | I202: 1 | J202: 166602764 | K202: 0 | M202: 1 | N202: 188292626 | O202: 0 | Q202: 1 | R202: 241929849.9 | S202: 0 | U202: 1 | V202: 266150764.4 | W202: 0 | Y202: 1 | Z202: 285706597.3 | AA202: 0 | AC202: 1 | AD202: 308843180.5 | AE202: 0 | AG202: 1 | AH202: 371762844.1 | AI202: 0 | AK202: 1 | AL202: 400222795.8 | AM202: 0
B204: New v Used
A205: New | B205: New | E205: =F205/F$208 -> 0.8625515067 | F205: =IFERROR(VLOOKUP($A205,'[7]New v Used'!$A$1:$C$9,3,FALSE),0) -> 130042060.9 | I205: 0.8613472169 | J205: 143502827.1 | M205: 0.8637584523 | N205: 162639347.2 | Q205: 0.8576231461 | R205: 207484639 | U205: 0.8565550016 | V205: 227972768.5 | Y205: 0.8575749509 | Z205: 245014821.2 | AC205: 0.8572832787 | AD205: 264766094.4 | AG205: 0.856030148 | AH205: 318240202.4 | AK205: 0.8507711004 | AL205: 340497988.4
A206: USed | B206: Used | E206: =F206/F$208 -> 0.1374484933 | F206: =IFERROR(VLOOKUP($A206,'[7]New v Used'!$A$1:$C$9,3,FALSE),0) -> 20722339.71 | I206: 0.1386527831 | J206: 23099936.89 | M206: 0.1362415477 | N206: 25653278.79 | Q206: 0.1423768539 | R206: 34445210.88 | U206: 0.1434449984 | V206: 38177995.99 | Y206: 0.1424250491 | Z206: 40691776.14 | AC206: 0.1427167213 | AD206: 44077086.11 | AG206: 0.143969852 | AH206: 53522641.64 | AK206: 0.1492288996 | AL206: 59724807.41
A207: Used
E208: =SUM(E205:E206) -> 1 | F208: =SUM(F205:F206) -> 150764400.6 | G208: =F202-F208 -> 0 | I208: 1 | J208: 166602764 | K208: 0 | M208: 1 | N208: 188292626 | O208: -3.87430191e-07 | Q208: 1 | R208: 241929849.9 | S208: 0 | U208: 1 | V208: 266150764.5 | W208: 0 | Y208: 1 | Z208: 285706597.3 | AA208: 0 | AC208: 1 | AD208: 308843180.6 | AE208: 0 | AG208: 1 | AH208: 371762844.1 | AI208: 0 | AK208: 1 | AL208: 400222795.8 | AM208: 0
B210: Contract Type
A211: Finance Lease | B211: Finance Lease | E211: =F211/F$214 -> 0.00653835233 | F211: =IFERROR(VLOOKUP($A211,'[7]Loan Type'!$A$1:$C$10,3,FALSE),0) -> 985750.77 | I211: 0.00609254442 | J211: 1015034.74 | M211: 0.005668376412 | N211: 1067313.48 | Q211: 0.005320038353 | R211: 1287076.08 | U211: 0.005693412916 | V211: 1515306.2 | Y211: 0.005402395236 | Z211: 1543499.96 | AC211: 0.007992537655 | AD211: 2468440.75 | AG211: 0.01023429431 | AH211: 3804730.36 | AK211: 0.01217326607 | AL211: 4872018.58
A212: Goods Mortgage | B212: Goods Mortgage | E212: =F212/F$214 -> 0.9934616477 | F212: =IFERROR(VLOOKUP($A212,'[7]Loan Type'!$A$1:$C$10,3,FALSE),0) -> 149778649.8 | I212: 0.9939074556 | J212: 165587729.2 | M212: 0.9943316236 | N212: 187225312.6 | Q212: 0.9946799616 | R212: 240642773.8 | U212: 0.9943065871 | V212: 264635458.2 | Y212: 0.9945976048 | Z212: 284163097.3 | AC212: 0.9920074623 | AD212: 306374739.8 | AG212: 0.9897657057 | AH212: 367958113.7 | AK212: 0.9878267339 | AL212: 395350777.2
A213: Hire Purchase | B213: Hire Purchase | E213: 0 | F213: =IFERROR(VLOOKUP($A213,'[7]Loan Type'!$A$1:$C$10,3,FALSE),0) -> 0 | I213: 0 | J213: 0 | M213: 0 | N213: 0 | Q213: 0 | R213: 0 | U213: 0 | V213: 0 | Y213: 0 | Z213: 0 | AC213: 0 | AD213: 0 | AG213: 0 | AH213: 0 | AK213: 0 | AL213: 0
E214: =SUM(E211:E213) -> 1 | F214: =SUM(F211:F213) -> 150764400.6 | G214: =F208-F214 -> 0 | I214: 1 | J214: 166602764 | K214: 0 | M214: 1 | N214: 188292626 | O214: 0 | Q214: 1 | R214: 241929849.9 | S214: 0 | U214: 1 | V214: 266150764.4 | W214: 0 | Y214: 1 | Z214: 285706597.3 | AA214: 0 | AC214: 1 | AD214: 308843180.5 | AE214: 8.940696716e-07 | AG214: 1 | AH214: 371762844.1 | AI214: 0 | AK214: 1 | AL214: 400222795.8 | AM214: 0
... 30 more rows
